Organisation Name (A),Department (B),Service Cat Label (C ),Purpose of Spend (D),Expenditure CIPFA Sub Group (E),Supplier (F),Supplier Reference (G),Pay Date (H),Transaction Number (I),Net Amount (J),Grant to VCSE? (K),Charity Number (L),Card Transaction (M),Irrecoverable VAT (N)
Pendle Borough Council,Finance,Agency Costs,PLT Management Fee,5305,APSE,A0000021,09/11/2023,FIN0337533,20381.13,N,,N,N
Pendle Borough Council,Operational Services,Transport Related Expense,Tprt : Repairs : General,3105,BALMERS GM LIMITED,A0000198,23/11/2023,OPS0337760,10.44,N,,N,N
Pendle Borough Council,Operational Services,Transport Related Expense,Tprt : Repairs : General,3105,BALMERS GM LIMITED,A0000198,16/11/2023,OPS0337612,52.2,N,,N,N
Pendle Borough Council,Operational Services,Transport Related Expense,Tprt : Repairs : General,3105,BALMERS GM LIMITED,A0000198,16/11/2023,OPS0337612,132.14,N,,N,N
Pendle Borough Council,Operational Services,Transport Related Expense,Tprt : Repairs : General,3105,BALMERS GM LIMITED,A0000198,16/11/2023,OPS0337612,132.14,N,,N,N
Pendle Borough Council,Operational Services,Transport Related Expense,Tprt : Repairs : General,3105,BALMERS GM LIMITED,A0000198,02/11/2023,OPS0337349,93.43,N,,N,N
Pendle Borough Council,Operational Services,Transport Related Expense,Tprt : Repairs : General,3105,BALMERS GM LIMITED,A0000198,16/11/2023,OPS0337612,132.14,N,,N,N
Pendle Borough Council,Operational Services,Transport Related Expense,Tprt : Repairs : General,3105,BALMERS GM LIMITED,A0000198,16/11/2023,OPS0337612,132.14,N,,N,N
Pendle Borough Council,Operational Services,Transport Related Expense,Tprt : Repairs : General,3105,BALMERS GM LIMITED,A0000198,16/11/2023,OPS0337612,132.15,N,,N,N
Pendle Borough Council,Operational Services,Transport Related Expense,Tprt : Repairs : General,3105,BALMERS GM LIMITED,A0000198,16/11/2023,OPS0337612,132.14,N,,N,N
Pendle Borough Council,Operational Services,Transport Related Expense,Tprt : Repairs : General,3105,BALMERS GM LIMITED,A0000198,02/11/2023,OPS0337349,19.81,N,,N,N
Pendle Borough Council,Operational Services,Transport Related Expense,Diesel Oil,3202,BALMERS GM LIMITED,A0000198,23/11/2023,OPS0337762,730.11,N,,N,N
Pendle Borough Council,Operational Services,Supplies and Services,Expenditure : Materials,0002,BARNES JB LIMITED,A0000202,23/11/2023,OPS0337758,8.22,N,,N,N
Pendle Borough Council,Operational Services,Supplies and Services,Expenditure : Materials,0002,BARNES JB LIMITED,A0000202,23/11/2023,OPS0337759,54.8,N,,N,N
Pendle Borough Council,Operational Services,Supplies and Services,Expenditure : Materials,0002,BARNES JB LIMITED,A0000202,09/11/2023,OPS0337452,65.4,N,,N,N
Pendle Borough Council,Operational Services,Premises Related Expense,Bldgs : R & M : Day To Day,2001,BARNES JB LIMITED,A0000202,23/11/2023,OPS0337734,31.77,N,,N,N
Pendle Borough Council,Operational Services,Premises Related Expense,Bldgs : R & M : Day To Day,2001,BARNES JB LIMITED,A0000202,02/11/2023,OPS0337337,33,N,,N,N
Pendle Borough Council,Operational Services,Premises Related Expense,Bldgs : R & M : Day To Day,2001,BARNES JB LIMITED,A0000202,09/11/2023,OPS0337462,41.04,N,,N,N
Pendle Borough Council,Operational Services,Premises Related Expense,Grounds : R & M : Day to Day : Routine,2101,BARNES JB LIMITED,A0000202,09/11/2023,OPS0337453,93.98,N,,N,N
Pendle Borough Council,Operational Services,Premises Related Expense,Grounds : R & M : Day to Day : Routine,2101,BARNES JB LIMITED,A0000202,09/11/2023,OPS0337456,12,N,,N,N
Pendle Borough Council,Operational Services,Premises Related Expense,Grounds : R & M : Day to Day : Routine,2101,BARNES JB LIMITED,A0000202,09/11/2023,OPS0337457,35.99,N,,N,N
Pendle Borough Council,Operational Services,Transport Related Expense,Tprt : Repairs : General,3105,BARNES JB LIMITED,A0000202,09/11/2023,OPS0337486,27.82,N,,N,N
Pendle Borough Council,Operational Services,Supplies and Services,EFM Materials,4004,BARNES JB LIMITED,A0000202,23/11/2023,OPS0337747,27.27,N,,N,N
Pendle Borough Council,Operational Services,Supplies and Services,EFM Materials,4004,BROXAP LIMITED,A0000236,23/11/2023,OPS0337737,82.5,N,,N,N
Pendle Borough Council,"Planning, Building Control & Regulatory Services",Supplies and Services,Other Expenses,4705,BLACKBURN/DARWEN BOROUGH COUNCIL,A0000381,09/11/2023,PBC0337428,2036.37,N,,N,N
Pendle Borough Council,Operational Services,Transport Related Expense,Hire of Plant,3502,BOC GASES LTD,A0000386,09/11/2023,OPS0337482,25.95,N,,N,N
Pendle Borough Council,Operational Services,Premises Related Expense,Bldgs : R & M : Day To Day,2001,BARROWFORD SAFE & LOCK SERV LT,A0000458,09/11/2023,OPS0337478,44,N,,N,N
Pendle Borough Council,Operational Services,Premises Related Expense,Bldgs : R & M : Day To Day,2001,BARROWFORD SAFE & LOCK SERV LT,A0000458,09/11/2023,OPS0337478,89.9,N,,N,N
Pendle Borough Council,Operational Services,Premises Related Expense,Bldgs : R & M : Day To Day,2001,BARROWFORD SAFE & LOCK SERV LT,A0000458,09/11/2023,OPS0337469,3.33,N,,N,N
Pendle Borough Council,Operational Services,Premises Related Expense,Grounds : R & M : Day to Day : Routine,2101,BARROWFORD SAFE & LOCK SERV LT,A0000458,09/11/2023,OPS0337478,105.9,N,,N,N
Pendle Borough Council,Finance,Indirect Employee Expenses,Training,1211,CIPFA,A0000563,23/11/2023,FIN0337850,7.57,N,,N,N
Pendle Borough Council,Finance,Indirect Employee Expenses,Training,1211,CIPFA,A0000563,02/11/2023,FIN0337394,23.15,N,,N,N
Pendle Borough Council,Finance,Supplies and Services,Subscriptions & Donations,4706,CIPFA,A0000563,23/11/2023,FIN0337844,184.25,N,,N,N
Pendle Borough Council,Housing & Environmental Health,Premises Related Expense,Bldgs : R & M : Abnormal,2002,MARTIN COLLINS JOINERY & GLAZING,A0000623,02/11/2023,HEH0337317,72,N,,N,N
Pendle Borough Council,Housing & Environmental Health,Premises Related Expense,Bldgs : R & M : Abnormal,2002,MARTIN COLLINS JOINERY & GLAZING,A0000623,23/11/2023,HEH0337578,150,N,,N,N
Pendle Borough Council,"Planning, Building Control & Regulatory Services",Supplies and Services,Other Expenses,4705,MARTIN COLLINS JOINERY & GLAZING,A0000623,16/11/2023,PBC0337622,60,N,,N,N
Pendle Borough Council,Housing & Environmental Health,Transfer Payments,Storage & Homelessness prevention,6104,CAVALIER TAXIS,A0000638,16/11/2023,HEH0337565,560,N,,N,N
Pendle Borough Council,Accountancy Control,Supplies and Services,Licences,4416,CIVICA UK LTD,A0000660,09/11/2023,AAS0337527,1175.62,N,,N,N
Pendle Borough Council,Operational Services,Indirect Employee Expenses,Training,1211,CRAVEN COLLEGE,A0000735,02/11/2023,OPS0337329,245,N,,N,N
Pendle Borough Council,Operational Services,Indirect Employee Expenses,Training,1211,CRAVEN COLLEGE,A0000735,02/11/2023,OPS0337328,470,N,,N,N
Pendle Borough Council,Legal & Democratic Services,Supplies and Services,Other Expenses,4705,CARRO-STEP PRINT SERVICES,A0000853,09/11/2023,LAD0337476,345,N,,N,N
Pendle Borough Council,Property Services,Premises Related Expense,Bldgs : R & M : Day To Day,2001,J DRIVER LTD,A0000884,09/11/2023,EST0337495,554.82,N,,N,N
Pendle Borough Council,Property Services,Premises Related Expense,Bldgs : R & M : Day To Day,2001,J DRIVER LTD,A0000884,09/11/2023,EST0337495,112,N,,N,N
Pendle Borough Council,Property Services,Premises Related Expense,Bldgs : R & M : Day To Day,2001,J DRIVER LTD,A0000884,09/11/2023,EST0337495,140,N,,N,N
Pendle Borough Council,Property Services,Premises Related Expense,Bldgs : R & M : Day To Day,2001,J DRIVER LTD,A0000884,09/11/2023,EST0337495,672,N,,N,N
Pendle Borough Council,Property Services,Premises Related Expense,Bldgs : R & M : Abnormal,2002,J DRIVER LTD,A0000884,09/11/2023,EST0337495,1893,N,,N,N
Pendle Borough Council,Finance,Capital Costs,Capital: Construction: New Build,CD56,J DRIVER LTD,A0000884,23/11/2023,FIN0337851,2070.78,N,,N,N
Pendle Borough Council,Operational Services,Premises Related Expense,Grounds : R & M : Day to Day : Routine,2101,ENGINEERING & FOUNDRY SUPPLIES,A0001002,09/11/2023,OPS0337446,62.4,N,,N,N
Pendle Borough Council,Operational Services,Supplies and Services,Protective Clothing,4201,ENGINEERING & FOUNDRY SUPPLIES,A0001002,02/11/2023,OPS0337342,44.59,N,,N,N
Pendle Borough Council,Operational Services,,Stock : Purchases,PJ01,ENGINEERING & FOUNDRY SUPPLIES,A0001002,02/11/2023,OPS4006762,-8.25,N,,N,N
Pendle Borough Council,Operational Services,,Stock : Purchases,pj01,ENGINEERING & FOUNDRY SUPPLIES,A0001002,09/11/2023,OPS0337459,253.44,N,,N,N
Pendle Borough Council,Operational Services,,Stock : Purchases,pj01,ENGINEERING & FOUNDRY SUPPLIES,A0001002,09/11/2023,OPS0337460,305.37,N,,N,N
Pendle Borough Council,Operational Services,,Stock : Purchases,PJ01,ENGINEERING & FOUNDRY SUPPLIES,A0001002,02/11/2023,OPS0337356,928.09,N,,N,N
Pendle Borough Council,Human Resources,Supplies and Services,Legal Fees,4402,FORBES SOLICITORS,A0001117,16/11/2023,PER0337562,308,N,,N,N
Pendle Borough Council,Operational Services,Transport Related Expense,Tprt : Repairs : General,3105,FREIGHT TRANSPORT ASSOCIATION,A0001124,09/11/2023,OPS0337465,44,N,,N,N
Pendle Borough Council,Operational Services,Transport Related Expense,Tprt : Repairs : General,3105,GIBSONS GARDEN MACHINERY LTD,A0001201,23/11/2023,OPS0337761,1204.05,N,,N,N
Pendle Borough Council,Operational Services,Supplies and Services,Telephones : Direct,4502,LODGE TECHNICAL LIMITED,A0001235,16/11/2023,OPS0337602,1500,N,,N,N
Pendle Borough Council,Operational Services,Premises Related Expense,Grounds : R & M : Day to Day : Routine,2101,JEWSON LIMITED,A0001323,16/11/2023,OPS0337607,185.92,N,,N,N
Pendle Borough Council,Operational Services,Transport Related Expense,Tprt : Repairs : General,3105,JEWSON LIMITED,A0001323,09/11/2023,OPS0337487,243.24,N,,N,N
Pendle Borough Council,Operational Services,Premises Related Expense,Bldgs : R & M : Day To Day,2001,J HARGREAVES,A0001359,09/11/2023,OPS0337447,25,N,,N,N
Pendle Borough Council,Housing & Environmental Health,Supplies and Services,EFM Materials,4004,KILLGERM CHEMICALS LTD,A0001624,16/11/2023,HEH0337580,137.34,N,,N,N
Pendle Borough Council,Operational Services,Transport Related Expense,Tprt : Repairs : General,3105,DICK LEIGH,A0001675,23/11/2023,OPS0337766,54.08,N,,N,N
Pendle Borough Council,Operational Services,Transport Related Expense,Tprt : Repairs : General,3105,DICK LEIGH,A0001675,23/11/2023,OPS0337767,554.25,N,,N,N
Pendle Borough Council,Operational Services,Transport Related Expense,Tprt : Repairs : General,3105,DICK LEIGH,A0001675,09/11/2023,OPS0337483,21.86,N,,N,N
Pendle Borough Council,Operational Services,Supplies and Services,EFM : Other Equipment,4003,DICK LEIGH,A0001675,02/11/2023,OPS0337347,650.37,N,,N,N
Pendle Borough Council,Economic Growth,Capital Costs,Capital : Payments,CD14,LANCASHIRE COUNTY COUNCIL,A0001690,02/11/2023,ECO0337381,142.5,N,,N,N
Pendle Borough Council,Housing & Environmental Health,Capital Costs,Ren Grant : 1996 Act,CH22,LANCASHIRE COUNTY COUNCIL,A0001690,02/11/2023,HEH0337374,3292,N,,N,N
Pendle Borough Council,Housing & Environmental Health,Capital Costs,Ren Grant : 1996 Act,CH22,LANCASHIRE COUNTY COUNCIL,A0001690,09/11/2023,HEH0337397,3743,N,,N,N
Pendle Borough Council,Human Resources,Indirect Employee Expenses,Training,1211,LEEDS BECKETT UNIVERSITY,A0001706,02/11/2023,PER0337305,4444,N,,N,N
Pendle Borough Council,Operational Services,Premises Related Expense,Grounds : R & M : Day to Day : Routine,2101,MONK OF COLNE LTD,A0001828,16/11/2023,OPS0337605,500,N,,N,N
Pendle Borough Council,Operational Services,Premises Related Expense,Grounds : R & M : Day to Day : Routine,2101,MONK OF COLNE LTD,A0001828,16/11/2023,OPS0337605,830.5,N,,N,N
Pendle Borough Council,Operational Services,Premises Related Expense,Grounds : R & M : Day to Day : Routine,2101,JOHN MACADAM & SON (RESCUE) LTD,A0001846,09/11/2023,OPS0337461,250,N,,N,N
Pendle Borough Council,Property Services,Premises Related Expense,Water & Sewerage,2501,WATER PLUS LIMITED,A0001986,23/11/2023,EST0337804,36.32,N,,N,N
Pendle Borough Council,Property Services,Premises Related Expense,Water & Sewerage,2501,WATER PLUS LIMITED,A0001986,23/11/2023,EST0337803,266.95,N,,N,N
Pendle Borough Council,Property Services,Premises Related Expense,Water & Sewerage,2501,WATER PLUS LIMITED,A0001986,23/11/2023,EST0337828,91.94,N,,N,N
Pendle Borough Council,Property Services,Premises Related Expense,Water & Sewerage,2501,WATER PLUS LIMITED,A0001986,23/11/2023,EST0337799,94.22,N,,N,N
Pendle Borough Council,Property Services,Premises Related Expense,Water & Sewerage,2501,WATER PLUS LIMITED,A0001986,23/11/2023,EST0337829,11.91,N,,N,N
Pendle Borough Council,Property Services,Premises Related Expense,Water & Sewerage,2501,WATER PLUS LIMITED,A0001986,23/11/2023,EST0337808,100.99,N,,N,N
Pendle Borough Council,Property Services,Premises Related Expense,Water & Sewerage,2501,WATER PLUS LIMITED,A0001986,23/11/2023,EST0337805,1.41,N,,N,N
Pendle Borough Council,Property Services,Premises Related Expense,Water & Sewerage,2501,WATER PLUS LIMITED,A0001986,23/11/2023,EST0337807,15.51,N,,N,N
Pendle Borough Council,Property Services,Premises Related Expense,Water & Sewerage,2501,WATER PLUS LIMITED,A0001986,23/11/2023,EST0337802,39.98,N,,N,N
Pendle Borough Council,Property Services,Premises Related Expense,Water & Sewerage,2501,WATER PLUS LIMITED,A0001986,23/11/2023,EST0337827,187.9,N,,N,N
Pendle Borough Council,Property Services,Premises Related Expense,Water & Sewerage,2501,WATER PLUS LIMITED,A0001986,23/11/2023,EST0337830,192.89,N,,N,N
Pendle Borough Council,Property Services,Premises Related Expense,Water & Sewerage,2501,WATER PLUS LIMITED,A0001986,23/11/2023,EST0337801,53.86,N,,N,N
Pendle Borough Council,Property Services,Premises Related Expense,Water & Sewerage,2501,WATER PLUS LIMITED,A0001986,23/11/2023,EST0337809,223.09,N,,N,N
Pendle Borough Council,Operational Services,Premises Related Expense,Bldgs : R & M : Day To Day,2001,OPTION HYGIENE LIMITED,A0002063,16/11/2023,OPS0337590,45.12,N,,N,N
Pendle Borough Council,Operational Services,Premises Related Expense,Bldgs : R & M : Day To Day,2001,POWER PIPES (PENDLE) LIMITED,A0002089,23/11/2023,OPS0337842,626,N,,N,N
Pendle Borough Council,Housing & Environmental Health,Supplies and Services,Postages,4501,ROYAL MAIL GROUP LIMITED,A0002281,02/11/2023,HEH0337322,2.29,N,,N,N
Pendle Borough Council,Housing & Environmental Health,Supplies and Services,Postages,4501,ROYAL MAIL GROUP LIMITED,A0002281,09/11/2023,HEH0337475,72.15,N,,N,N
Pendle Borough Council,Housing & Environmental Health,Supplies and Services,Postages,4501,ROYAL MAIL GROUP LIMITED,A0002281,02/11/2023,HEH0337321,91.65,N,,N,N
Pendle Borough Council,Housing & Environmental Health,Supplies and Services,Postages,4501,ROYAL MAIL GROUP LIMITED,A0002281,02/11/2023,HEH0337322,142.35,N,,N,N
Pendle Borough Council,Housing & Environmental Health,Supplies and Services,Postages,4501,ROYAL MAIL GROUP LIMITED,A0002281,16/11/2023,HEH0337569,148.21,N,,N,N
Pendle Borough Council,Housing & Environmental Health,Supplies and Services,Postages,4501,ROYAL MAIL GROUP LIMITED,A0002281,23/11/2023,HEH0337717,185.25,N,,N,N
Pendle Borough Council,Housing & Environmental Health,Supplies and Services,Postages,4501,ROYAL MAIL GROUP LIMITED,A0002281,02/11/2023,HEH0337322,4.55,N,,N,N
Pendle Borough Council,Housing & Environmental Health,Supplies and Services,Postages,4501,ROYAL MAIL GROUP LIMITED,A0002281,02/11/2023,HEH0337321,9.75,N,,N,N
Pendle Borough Council,Housing & Environmental Health,Supplies and Services,Postages,4501,ROYAL MAIL GROUP LIMITED,A0002281,09/11/2023,HEH0337475,16.9,N,,N,N
Pendle Borough Council,Housing & Environmental Health,Supplies and Services,Postages,4501,ROYAL MAIL GROUP LIMITED,A0002281,16/11/2023,HEH0337569,36.19,N,,N,N
Pendle Borough Council,Housing & Environmental Health,Supplies and Services,Postages,4501,ROYAL MAIL GROUP LIMITED,A0002281,23/11/2023,HEH0337717,67.6,N,,N,N
Pendle Borough Council,Housing & Environmental Health,Supplies and Services,Postages,4501,ROYAL MAIL GROUP LIMITED,A0002281,23/11/2023,HEH0337717,0.09,N,,N,N
Pendle Borough Council,Housing & Environmental Health,Supplies and Services,Postages,4501,ROYAL MAIL GROUP LIMITED,A0002281,16/11/2023,HEH0337569,0.19,N,,N,N
Pendle Borough Council,Housing & Environmental Health,Supplies and Services,Postages,4501,ROYAL MAIL GROUP LIMITED,A0002281,09/11/2023,HEH0337475,3.25,N,,N,N
Pendle Borough Council,Housing & Environmental Health,Supplies and Services,Postages,4501,ROYAL MAIL GROUP LIMITED,A0002281,16/11/2023,HEH0337569,5.45,N,,N,N
Pendle Borough Council,Housing & Environmental Health,Supplies and Services,Postages,4501,ROYAL MAIL GROUP LIMITED,A0002281,02/11/2023,HEH0337322,12.69,N,,N,N
Pendle Borough Council,Housing & Environmental Health,Supplies and Services,Postages,4501,ROYAL MAIL GROUP LIMITED,A0002281,16/11/2023,HEH0337569,2.6,N,,N,N
Pendle Borough Council,Housing & Environmental Health,Supplies and Services,Postages,4501,ROYAL MAIL GROUP LIMITED,A0002281,23/11/2023,HEH0337717,2.6,N,,N,N
Pendle Borough Council,Housing & Environmental Health,Supplies and Services,Postages,4501,ROYAL MAIL GROUP LIMITED,A0002281,02/11/2023,HEH0337321,4.55,N,,N,N
Pendle Borough Council,Housing & Environmental Health,Supplies and Services,Postages,4501,ROYAL MAIL GROUP LIMITED,A0002281,23/11/2023,HEH0337717,5.34,N,,N,N
Pendle Borough Council,Housing & Environmental Health,Supplies and Services,Postages,4501,ROYAL MAIL GROUP LIMITED,A0002281,02/11/2023,HEH0337322,6.14,N,,N,N
Pendle Borough Council,Housing & Environmental Health,Supplies and Services,Postages,4501,ROYAL MAIL GROUP LIMITED,A0002281,02/11/2023,HEH0337321,11.03,N,,N,N
Pendle Borough Council,Housing & Environmental Health,Supplies and Services,Postages,4501,ROYAL MAIL GROUP LIMITED,A0002281,09/11/2023,HEH0337475,12.28,N,,N,N
Pendle Borough Council,Housing & Environmental Health,Supplies and Services,Postages,4501,ROYAL MAIL GROUP LIMITED,A0002281,02/11/2023,HEH0337321,16.82,N,,N,N
Pendle Borough Council,Housing & Environmental Health,Supplies and Services,Postages,4501,ROYAL MAIL GROUP LIMITED,A0002281,02/11/2023,HEH0337322,17.22,N,,N,N
Pendle Borough Council,Housing & Environmental Health,Supplies and Services,Postages,4501,ROYAL MAIL GROUP LIMITED,A0002281,23/11/2023,HEH0337717,19.86,N,,N,N
Pendle Borough Council,Housing & Environmental Health,Supplies and Services,Postages,4501,ROYAL MAIL GROUP LIMITED,A0002281,16/11/2023,HEH0337569,21.21,N,,N,N
Pendle Borough Council,Housing & Environmental Health,Supplies and Services,Postages,4501,ROYAL MAIL GROUP LIMITED,A0002281,09/11/2023,HEH0337475,31.07,N,,N,N
Pendle Borough Council,Housing & Environmental Health,Supplies and Services,Postages,4501,ROYAL MAIL GROUP LIMITED,A0002281,23/11/2023,HEH0337717,0.93,N,,N,N
Pendle Borough Council,Housing & Environmental Health,Supplies and Services,Postages,4501,ROYAL MAIL GROUP LIMITED,A0002281,16/11/2023,HEH0337569,1.91,N,,N,N
Pendle Borough Council,Housing & Environmental Health,Supplies and Services,Postages,4501,ROYAL MAIL GROUP LIMITED,A0002281,09/11/2023,HEH0337475,32.58,N,,N,N
Pendle Borough Council,Housing & Environmental Health,Supplies and Services,Postages,4501,ROYAL MAIL GROUP LIMITED,A0002281,16/11/2023,HEH0337569,54.63,N,,N,N
Pendle Borough Council,Housing & Environmental Health,Supplies and Services,Postages,4501,ROYAL MAIL GROUP LIMITED,A0002281,02/11/2023,HEH0337322,126.75,N,,N,N
Pendle Borough Council,Housing & Environmental Health,Supplies and Services,Postages,4501,ROYAL MAIL GROUP LIMITED,A0002281,02/11/2023,HEH0337321,31.89,N,,N,N
Pendle Borough Council,Housing & Environmental Health,Supplies and Services,Postages,4501,ROYAL MAIL GROUP LIMITED,A0002281,02/11/2023,HEH0337322,58.5,N,,N,N
Pendle Borough Council,Housing & Environmental Health,Supplies and Services,Postages,4501,ROYAL MAIL GROUP LIMITED,A0002281,23/11/2023,HEH0337717,64.35,N,,N,N
Pendle Borough Council,Housing & Environmental Health,Supplies and Services,Postages,4501,ROYAL MAIL GROUP LIMITED,A0002281,09/11/2023,HEH0337475,117,N,,N,N
Pendle Borough Council,Housing & Environmental Health,Supplies and Services,Postages,4501,ROYAL MAIL GROUP LIMITED,A0002281,16/11/2023,HEH0337569,163.82,N,,N,N
Pendle Borough Council,Housing & Environmental Health,Supplies and Services,Postages,4501,ROYAL MAIL GROUP LIMITED,A0002281,02/11/2023,HEH0337321,0.65,N,,N,N
Pendle Borough Council,Housing & Environmental Health,Supplies and Services,Postages,4501,ROYAL MAIL GROUP LIMITED,A0002281,02/11/2023,HEH0337322,7.8,N,,N,N
Pendle Borough Council,Housing & Environmental Health,Supplies and Services,Postages,4501,ROYAL MAIL GROUP LIMITED,A0002281,16/11/2023,HEH0337569,14.22,N,,N,N
Pendle Borough Council,Housing & Environmental Health,Supplies and Services,Postages,4501,ROYAL MAIL GROUP LIMITED,A0002281,23/11/2023,HEH0337717,18.69,N,,N,N
Pendle Borough Council,Housing & Environmental Health,Supplies and Services,Postages,4501,ROYAL MAIL GROUP LIMITED,A0002281,09/11/2023,HEH0337475,35.15,N,,N,N
Pendle Borough Council,Housing & Environmental Health,Supplies and Services,Postages,4501,ROYAL MAIL GROUP LIMITED,A0002281,02/11/2023,HEH0337322,2.67,N,,N,N
Pendle Borough Council,Housing & Environmental Health,Supplies and Services,Postages,4501,ROYAL MAIL GROUP LIMITED,A0002281,02/11/2023,HEH0337321,5.34,N,,N,N
Pendle Borough Council,Housing & Environmental Health,Supplies and Services,Postages,4501,ROYAL MAIL GROUP LIMITED,A0002281,23/11/2023,HEH0337717,13.35,N,,N,N
Pendle Borough Council,Housing & Environmental Health,Supplies and Services,Postages,4501,ROYAL MAIL GROUP LIMITED,A0002281,16/11/2023,HEH0337569,16.02,N,,N,N
Pendle Borough Council,Housing & Environmental Health,Supplies and Services,Postages,4501,ROYAL MAIL GROUP LIMITED,A0002281,09/11/2023,HEH0337475,18.69,N,,N,N
Pendle Borough Council,Housing & Environmental Health,Supplies and Services,Postages,4501,ROYAL MAIL GROUP LIMITED,A0002281,09/11/2023,HEH0337475,123.45,N,,N,N
Pendle Borough Council,Housing & Environmental Health,Supplies and Services,Postages,4501,ROYAL MAIL GROUP LIMITED,A0002281,23/11/2023,HEH0337717,152.82,N,,N,N
Pendle Borough Council,Housing & Environmental Health,Supplies and Services,Postages,4501,ROYAL MAIL GROUP LIMITED,A0002281,16/11/2023,HEH0337569,154.4,N,,N,N
Pendle Borough Council,Housing & Environmental Health,Supplies and Services,Postages,4501,ROYAL MAIL GROUP LIMITED,A0002281,02/11/2023,HEH0337322,169.35,N,,N,N
Pendle Borough Council,Housing & Environmental Health,Supplies and Services,Postages,4501,ROYAL MAIL GROUP LIMITED,A0002281,02/11/2023,HEH0337321,181.76,N,,N,N
Pendle Borough Council,Housing & Environmental Health,Supplies and Services,Postages,4501,ROYAL MAIL GROUP LIMITED,A0002281,09/11/2023,HEH0337475,3.69,N,,N,N
Pendle Borough Council,Housing & Environmental Health,Supplies and Services,Postages,4501,ROYAL MAIL GROUP LIMITED,A0002281,23/11/2023,HEH0337717,36.44,N,,N,N
Pendle Borough Council,Housing & Environmental Health,Supplies and Services,Postages,4501,ROYAL MAIL GROUP LIMITED,A0002281,02/11/2023,HEH0337321,37.78,N,,N,N
Pendle Borough Council,Housing & Environmental Health,Supplies and Services,Postages,4501,ROYAL MAIL GROUP LIMITED,A0002281,09/11/2023,HEH0337475,52.22,N,,N,N
Pendle Borough Council,Housing & Environmental Health,Supplies and Services,Postages,4501,ROYAL MAIL GROUP LIMITED,A0002281,02/11/2023,HEH0337322,64.61,N,,N,N
Pendle Borough Council,Housing & Environmental Health,Supplies and Services,Postages,4501,ROYAL MAIL GROUP LIMITED,A0002281,16/11/2023,HEH0337569,80.58,N,,N,N
Pendle Borough Council,Operational Services,Transport Related Expense,Tprt : Annual Hire Charge,3601,STANLEY BROTHERS (TIPPERS) LTD,A0002422,09/11/2023,OPS0337464,2310,N,,N,N
Pendle Borough Council,Operational Services,Transport Related Expense,Tprt : Annual Hire Charge,3601,STANLEY BROTHERS (TIPPERS) LTD,A0002422,16/11/2023,OPS0337601,2420,N,,N,N
Pendle Borough Council,Operational Services,Transport Related Expense,Tprt : Repairs : General,3105,SPALDINGS (UK) LTD,A0002537,23/11/2023,OPS0337764,69,N,,N,N
Pendle Borough Council,Operational Services,Transport Related Expense,Tprt : Repairs : General,3105,SPALDINGS (UK) LTD,A0002537,02/11/2023,OPS0337348,149.5,N,,N,N
Pendle Borough Council,Operational Services,Supplies and Services,EFM : Other Equipment,4003,SPALDINGS (UK) LTD,A0002537,16/11/2023,OPS0337613,572.8,N,,N,N
Pendle Borough Council,Policy & Commissioning,Supplies and Services,Publicity & advertisement,4704,TRISTAR PRINTERS LTD,A0002731,02/11/2023,POL0337372,102,N,,N,N
Pendle Borough Council,Policy & Commissioning,Supplies and Services,Publicity & advertisement,4704,TRISTAR PRINTERS LTD,A0002731,02/11/2023,POL0337373,150,N,,N,N
Pendle Borough Council,Operational Services,Agency Staff,Emp : Agency Wages,1004,DHRB LIMITED T/A DRIVER HIRE (45680),A0003556,02/11/2023,OPS4006761,-57.81,N,,N,N
Pendle Borough Council,Operational Services,Agency Staff,Emp : Agency Wages,1004,DHRB LIMITED T/A DRIVER HIRE (45680),A0003556,02/11/2023,OPS0337332,9.64,N,,N,N
Pendle Borough Council,Operational Services,Agency Staff,Emp : Agency Wages,1004,DHRB LIMITED T/A DRIVER HIRE (45680),A0003556,02/11/2023,OPS0337335,289.05,N,,N,N
Pendle Borough Council,Operational Services,Agency Staff,Emp : Agency Wages,1004,DHRB LIMITED T/A DRIVER HIRE (45680),A0003556,23/11/2023,OPS0337754,450.45,N,,N,N
Pendle Borough Council,Operational Services,Agency Staff,Emp : Agency Wages,1004,DHRB LIMITED T/A DRIVER HIRE (45680),A0003556,02/11/2023,OPS0337334,572.75,N,,N,N
Pendle Borough Council,Operational Services,Agency Staff,Emp : Agency Wages,1004,DHRB LIMITED T/A DRIVER HIRE (45680),A0003556,02/11/2023,OPS0337333,597.1,N,,N,N
Pendle Borough Council,Operational Services,Agency Staff,Emp : Agency Wages,1004,DHRB LIMITED T/A DRIVER HIRE (45680),A0003556,23/11/2023,OPS0337746,780.43,N,,N,N
Pendle Borough Council,Operational Services,Agency Staff,Emp : Agency Wages,1004,DHRB LIMITED T/A DRIVER HIRE (45680),A0003556,02/11/2023,OPS0337332,9.63,N,,N,N
Pendle Borough Council,Operational Services,Agency Staff,Emp : Agency Wages,1004,DHRB LIMITED T/A DRIVER HIRE (45680),A0003556,23/11/2023,OPS0337746,289.05,N,,N,N
Pendle Borough Council,Operational Services,Agency Staff,Emp : Agency Wages,1004,DHRB LIMITED T/A DRIVER HIRE (45680),A0003556,02/11/2023,OPS0337334,394.9,N,,N,N
Pendle Borough Council,Operational Services,Agency Staff,Emp : Agency Wages,1004,DHRB LIMITED T/A DRIVER HIRE (45680),A0003556,23/11/2023,OPS0337754,435.98,N,,N,N
Pendle Borough Council,Operational Services,Agency Staff,Emp : Agency Wages,1004,DHRB LIMITED T/A DRIVER HIRE (45680),A0003556,02/11/2023,OPS0337333,587.48,N,,N,N
Pendle Borough Council,Operational Services,Agency Staff,Emp : Agency Wages,1004,DHRB LIMITED T/A DRIVER HIRE (45680),A0003556,02/11/2023,OPS0337335,599.79,N,,N,N
Pendle Borough Council,Operational Services,Agency Staff,Emp : Agency Wages,1004,DHRB LIMITED T/A DRIVER HIRE (45680),A0003556,23/11/2023,OPS0337754,158.97,N,,N,N
Pendle Borough Council,Operational Services,Agency Staff,Emp : Agency Wages,1004,DHRB LIMITED T/A DRIVER HIRE (45680),A0003556,02/11/2023,OPS0337333,529.52,N,,N,N
Pendle Borough Council,Operational Services,Agency Staff,Emp : Agency Wages,1004,DHRB LIMITED T/A DRIVER HIRE (45680),A0003556,02/11/2023,OPS0337335,587.86,N,,N,N
Pendle Borough Council,Operational Services,Transport Related Expense,Tprt : Repairs : General,3105,F G ROWLAND LIMITED,A0006489,09/11/2023,OPS0337481,315.28,N,,N,N
Pendle Borough Council,Operational Services,Transport Related Expense,Tprt : Repairs : General,3105,F G ROWLAND LIMITED,A0006489,09/11/2023,OPS0337485,599.39,N,,N,N
Pendle Borough Council,Operational Services,Transport Related Expense,Tprt : Repairs : General,3105,F G ROWLAND LIMITED,A0006489,09/11/2023,OPS0337481,315.28,N,,N,N
Pendle Borough Council,Operational Services,Transport Related Expense,Tprt : Repairs : General,3105,F G ROWLAND LIMITED,A0006489,09/11/2023,OPS0337484,382.86,N,,N,N
Pendle Borough Council,Legal & Democratic Services,Indirect Employee Expenses,Staff Refreshments,1261,PHILIP SANDERSON,A0006611,09/11/2023,LAD0337477,22.22,N,,N,N
Pendle Borough Council,Legal & Democratic Services,Supplies and Services,Hospitality,4611,PHILIP SANDERSON,A0006611,09/11/2023,LAD0337477,22.22,N,,N,N
Pendle Borough Council,Policy & Commissioning,Supplies and Services,Grant Funding,4737,POLICE & CRIME COMMISSIONER FOR LANCASHIRE,A0009816,23/11/2023,HEH0337711,7551,N,,N,N
Pendle Borough Council,Policy & Commissioning,Supplies and Services,Grant Funding,4737,COLNE OPEN DOOR CENTRE,A0009836,23/11/2023,POL0337835,7800,N,1121144,N,N
Pendle Borough Council,Policy & Commissioning,Supplies and Services,Subscriptions & Donations,4706,PENDLE CITIZENS ADVICE BUREAU,A0010260,23/11/2023,POL0337709,11610,N,,N,N
Pendle Borough Council,Legal & Democratic Services,Supplies and Services,Postages,4501,DX NETWORK SERVICES LIMITED,A0011509,16/11/2023,LAD0337557,33.21,N,,N,N
Pendle Borough Council,Finance,Premises Related Expense,Gas,2202,PENDLE LEISURE LIMITED,A0012961,23/11/2023,FIN0337845,56.1,N,XR43029,N,N
Pendle Borough Council,Finance,Premises Related Expense,Gas,2202,PENDLE LEISURE LIMITED,A0012961,23/11/2023,FIN0337845,57.97,N,XR43029,N,N
Pendle Borough Council,Finance,Premises Related Expense,Gas,2202,PENDLE LEISURE LIMITED,A0012961,23/11/2023,FIN0337845,57.97,N,XR43029,N,N
Pendle Borough Council,Finance,Premises Related Expense,Gas,2202,PENDLE LEISURE LIMITED,A0012961,23/11/2023,FIN0337845,274.5,N,XR43029,N,N
Pendle Borough Council,Finance,Premises Related Expense,Gas,2202,PENDLE LEISURE LIMITED,A0012961,23/11/2023,FIN0337845,283.65,N,XR43029,N,N
Pendle Borough Council,Finance,Premises Related Expense,Gas,2202,PENDLE LEISURE LIMITED,A0012961,23/11/2023,FIN0337845,285.48,N,XR43029,N,N
Pendle Borough Council,Finance,Premises Related Expense,Electricity,2203,PENDLE LEISURE LIMITED,A0012961,23/11/2023,FIN0337845,26.28,N,XR43029,N,N
Pendle Borough Council,Finance,Premises Related Expense,Electricity,2203,PENDLE LEISURE LIMITED,A0012961,23/11/2023,FIN0337845,235.41,N,XR43029,N,N
Pendle Borough Council,Finance,Premises Related Expense,Electricity,2203,PENDLE LEISURE LIMITED,A0012961,23/11/2023,FIN0337845,872.17,N,XR43029,N,N
Pendle Borough Council,Finance,Premises Related Expense,Electricity,2203,PENDLE LEISURE LIMITED,A0012961,23/11/2023,FIN0337845,909.68,N,XR43029,N,N
Pendle Borough Council,Finance,Premises Related Expense,Electricity,2203,PENDLE LEISURE LIMITED,A0012961,23/11/2023,FIN0337845,1049.48,N,XR43029,N,N
Pendle Borough Council,Finance,Premises Related Expense,Water & Sewerage,2501,PENDLE LEISURE LIMITED,A0012961,23/11/2023,FIN0337845,12.57,N,XR43029,N,N
Pendle Borough Council,Finance,Premises Related Expense,Water & Sewerage,2501,PENDLE LEISURE LIMITED,A0012961,23/11/2023,FIN0337845,12.97,N,XR43029,N,N
Pendle Borough Council,Finance,Premises Related Expense,Water & Sewerage,2501,PENDLE LEISURE LIMITED,A0012961,23/11/2023,FIN0337845,12.97,N,XR43029,N,N
Pendle Borough Council,Finance,Premises Related Expense,Water & Sewerage,2501,PENDLE LEISURE LIMITED,A0012961,23/11/2023,FIN0337845,16.08,N,XR43029,N,N
Pendle Borough Council,Finance,Premises Related Expense,Water & Sewerage,2501,PENDLE LEISURE LIMITED,A0012961,23/11/2023,FIN0337845,141.17,N,XR43029,N,N
Pendle Borough Council,Finance,Premises Related Expense,Water & Sewerage,2501,PENDLE LEISURE LIMITED,A0012961,23/11/2023,FIN0337845,145.88,N,XR43029,N,N
Pendle Borough Council,Finance,Premises Related Expense,Water & Sewerage,2501,PENDLE LEISURE LIMITED,A0012961,23/11/2023,FIN0337845,145.88,N,XR43029,N,N
Pendle Borough Council,Finance,Premises Related Expense,Water & Sewerage,2501,PENDLE LEISURE LIMITED,A0012961,23/11/2023,FIN0337845,145.88,N,XR43029,N,N
Pendle Borough Council,Finance,Supplies and Services,Telephones : Direct,4502,PENDLE LEISURE LIMITED,A0012961,23/11/2023,FIN0337845,-40.22,N,XR43029,N,N
Pendle Borough Council,Finance,Supplies and Services,Telephones : Direct,4502,PENDLE LEISURE LIMITED,A0012961,23/11/2023,FIN0337845,71.94,N,XR43029,N,N
Pendle Borough Council,Finance,Supplies and Services,Telephones : Direct,4502,PENDLE LEISURE LIMITED,A0012961,23/11/2023,FIN0337845,71.94,N,XR43029,N,N
Pendle Borough Council,Finance,Supplies and Services,Other Expenses,4705,PENDLE LEISURE LIMITED,A0012961,16/11/2023,FIN0337620,3468.75,N,XR43029,N,N
Pendle Borough Council,Policy & Commissioning,Supplies and Services,Children`s holiday activities,4716,PENDLE LEISURE LIMITED,A0012961,09/11/2023,POL0337506,6395,N,XR43029,N,N
Pendle Borough Council,Finance,Capital Costs,Miscellaneous,CE4F,PENDLE LEISURE LIMITED,A0012961,09/11/2023,FIN0337532,6900,N,XR43029,N,N
Pendle Borough Council,Operational Services,Agency Staff,Emp : Agency Wages,1004,LANDSCAPE ENGINEERING LTD,A0013135,02/11/2023,OPS0337343,3087.3,N,,N,N
Pendle Borough Council,Operational Services,Agency Staff,Emp : Agency Wages,1004,LANDSCAPE ENGINEERING LTD,A0013135,02/11/2023,OPS0337344,3400,N,,N,N
Pendle Borough Council,Operational Services,Supplies and Services,Sub-Contractors,4007,LANDSCAPE ENGINEERING LTD,A0013135,02/11/2023,OPS0337346,2672.2,N,,N,N
Pendle Borough Council,Operational Services,Supplies and Services,Sub-Contractors,4007,LANDSCAPE ENGINEERING LTD,A0013135,02/11/2023,OPS0337345,2800,N,,N,N
Pendle Borough Council,Finance,Capital Costs,Capital: Construction: Conversion/Refu,CD57,E A FOULDS LIMITED,A0013455,09/11/2023,FIN0337520,52786.2,N,,N,N
Pendle Borough Council,Operational Services,Supplies and Services,Sub-Contractors,4007,ORCHARD RECYCLING SERVICE,A0015803,02/11/2023,OPS0337340,2548.7,N,,N,N
Pendle Borough Council,Operational Services,Supplies and Services,Sub-Contractors,4007,ORCHARD RECYCLING SERVICE,A0015803,09/11/2023,OPS0337467,2832,N,,N,N
Pendle Borough Council,Operational Services,Supplies and Services,Sub-Contractors,4007,ORCHARD RECYCLING SERVICE,A0015803,16/11/2023,OPS0337592,2934,N,,N,N
Pendle Borough Council,Operational Services,Supplies and Services,Sub-Contractors,4007,ORCHARD RECYCLING SERVICE,A0015803,23/11/2023,OPS0337736,2997,N,,N,N
Pendle Borough Council,Housing & Environmental Health,Supplies and Services,Other Expenses,4705,WYRE BOROUGH COUNCIL,A0015808,02/11/2023,HEH0337376,250,N,,N,N
Pendle Borough Council,Operational Services,Transport Related Expense,Diesel Oil,3202,CROWN OIL LIMITED,A0019019,02/11/2023,OPS0337388,2580,N,,N,N
Pendle Borough Council,Operational Services,Supplies and Services,Sub-Contractors,4007,ASPEN VALLEY KENNELS & CATTERY,A0022106,09/11/2023,OPS0337473,963.3,N,,N,N
Pendle Borough Council,Operational Services,Supplies and Services,Other Expenses,4705,ASPEN VALLEY KENNELS & CATTERY,A0022106,09/11/2023,OPS0337473,1286.6,N,,N,N
Pendle Borough Council,Operational Services,Supplies and Services,Other Expenses,4705,PETER SCOTT PRINTERS LTD,A0024985,09/11/2023,OPS0337463,1712,N,,N,N
Pendle Borough Council,Operational Services,Transport Related Expense,Tprt : Repairs : General,3105,RIPON FARM SERVICES,A0025562,16/11/2023,OPS0337615,212.6,N,,N,N
Pendle Borough Council,Operational Services,Transport Related Expense,Tprt : Repairs : General,3105,RIPON FARM SERVICES,A0025562,09/11/2023,OPS0337480,109.18,N,,N,N
Pendle Borough Council,Operational Services,Transport Related Expense,Tprt : Repairs : General,3105,RIPON FARM SERVICES,A0025562,16/11/2023,OPS0337616,212.6,N,,N,N
Pendle Borough Council,Operational Services,Indirect Employee Expenses,Training,1211,SPECIALIST TRAINING & CONSULTANCY SERVICES LTD,A0026831,16/11/2023,OPS0337600,5,N,,N,N
Pendle Borough Council,Operational Services,Indirect Employee Expenses,Training,1211,SPECIALIST TRAINING & CONSULTANCY SERVICES LTD,A0026831,23/11/2023,OPS0337743,5,N,,N,N
Pendle Borough Council,Operational Services,Indirect Employee Expenses,Training,1211,SPECIALIST TRAINING & CONSULTANCY SERVICES LTD,A0026831,23/11/2023,OPS0337743,146,N,,N,N
Pendle Borough Council,Operational Services,Indirect Employee Expenses,Training,1211,SPECIALIST TRAINING & CONSULTANCY SERVICES LTD,A0026831,16/11/2023,OPS0337600,313.4,N,,N,N
Pendle Borough Council,Operational Services,Indirect Employee Expenses,Training,1211,SPECIALIST TRAINING & CONSULTANCY SERVICES LTD,A0026831,23/11/2023,OPS0337735,122.5,N,,N,N
Pendle Borough Council,Operational Services,Indirect Employee Expenses,Training,1211,SPECIALIST TRAINING & CONSULTANCY SERVICES LTD,A0026831,23/11/2023,OPS0337735,650,N,,N,N
Pendle Borough Council,Operational Services,Premises Related Expense,Bldgs : R & M : Day To Day,2001,BRITISH TELECOMMUNICATIONS PLC,A0040001,16/11/2023,OPS0337608,40,N,,N,N
Pendle Borough Council,Operational Services,Premises Related Expense,Bldgs : R & M : Day To Day,2001,BRITISH TELECOMMUNICATIONS PLC,A0040001,16/11/2023,OPS0337608,173.7,N,,N,N
Pendle Borough Council,Economic Growth,Premises Related Expense,Grounds : R & M : Day to Day : Routine,2101,LITE,A0040032,02/11/2023,ECO0337384,140,N,,N,N
Pendle Borough Council,Legal & Democratic Services,Supplies and Services,EFM : Photocopiers,4001,CANON (UK) LIMITED,A0040400,23/11/2023,LAD0337728,21.79,N,,N,N
Pendle Borough Council,Legal & Democratic Services,Supplies and Services,EFM : Photocopiers,4001,CANON (UK) LIMITED,A0040400,23/11/2023,LAD0337728,0.88,N,,N,N
Pendle Borough Council,Legal & Democratic Services,Supplies and Services,EFM : Photocopiers,4001,CANON (UK) LIMITED,A0040400,23/11/2023,LAD0337730,311.74,N,,N,N
Pendle Borough Council,Legal & Democratic Services,Supplies and Services,EFM : Photocopiers,4001,CANON (UK) LIMITED,A0040400,23/11/2023,LAD0337730,37.52,N,,N,N
Pendle Borough Council,Legal & Democratic Services,Supplies and Services,EFM : Photocopiers,4001,CANON (UK) LIMITED,A0040400,23/11/2023,LAD0337728,25.86,N,,N,N
Pendle Borough Council,"Planning, Building Control & Regulatory Services",Supplies and Services,EFM : Photocopiers,4001,CANON (UK) LIMITED,A0040400,23/11/2023,PBC0337795,76.42,N,,N,N
Pendle Borough Council,Operational Services,Supplies and Services,EFM : Photocopiers,4001,CANON (UK) LIMITED,A0040400,23/11/2023,OPS0337748,449.57,N,,N,N
Pendle Borough Council,Finance,Supplies and Services,EFM : Photocopiers,4001,CANON (UK) LIMITED,A0040400,16/11/2023,FIN0337674,33.85,N,,N,N
Pendle Borough Council,Operational Services,Supplies and Services,EFM : Photocopiers,4001,CANON (UK) LIMITED,A0040400,23/11/2023,OPS0337749,161.89,N,,N,N
Pendle Borough Council,Property Services,Premises Related Expense,Bldgs : R & M : Day To Day,2001,PENNINE FIRE & SAFETY LTD,A0040931,09/11/2023,EST0337498,116,N,,N,N
Pendle Borough Council,Property Services,Premises Related Expense,Bldgs : R & M : Day To Day,2001,PENNINE FIRE & SAFETY LTD,A0040931,09/11/2023,EST0337497,116,N,,N,N
Pendle Borough Council,Property Services,Premises Related Expense,Bldgs : R & M : Day To Day,2001,PENNINE FIRE & SAFETY LTD,A0040931,09/11/2023,EST0337496,191,N,,N,N
Pendle Borough Council,Legal & Democratic Services,Supplies and Services,Printing & Stationery,4301,CIVICA ELECTION SERVICES,A0041321,02/11/2023,LAD0337391,643.13,N,,N,N
Pendle Borough Council,Legal & Democratic Services,Supplies and Services,Postages,4501,CIVICA ELECTION SERVICES,A0041321,02/11/2023,LAD0337391,645.13,N,,N,N
Pendle Borough Council,Legal & Democratic Services,Supplies and Services,Miscellaneous : Other,4707,CIVICA ELECTION SERVICES,A0041321,23/11/2023,LAD0337714,10566.3,N,,N,N
Pendle Borough Council,Operational Services,,Stock : Purchases,PJ01,PMC POLYTHENE LIMITED,A0043215,16/11/2023,OPS0337599,839,N,,N,N
Pendle Borough Council,Property Services,Premises Related Expense,Bldgs : R & M : Day To Day,2001,ASKEW REFRIGERATION SERVICES LTD,A0043524,16/11/2023,EST0337650,245.59,N,,N,N
Pendle Borough Council,Operational Services,Transport Related Expense,Tprt : Repairs : General,3105, J RUSHTON,A0043864,09/11/2023,OPS0337488,80,N,,N,N
Pendle Borough Council,Property Services,Premises Related Expense,Electricity,2203,NPOWER LTD,A0044051,09/11/2023,EST0337499,847.17,N,,N,N
Pendle Borough Council,"Planning, Building Control & Regulatory Services",Supplies and Services,EFM : Other Equipment,4003,VIP SYSTEM LIMITED,A0050529,23/11/2023,PBC0337840,183.3,N,,N,N
Pendle Borough Council,"Planning, Building Control & Regulatory Services",Supplies and Services,EFM : Other Equipment,4003,VIP SYSTEM LIMITED,A0050529,23/11/2023,PBC0337840,763.96,N,,N,N
Pendle Borough Council,Operational Services,Transport Related Expense,Tprt : Repairs : General,3105,CAMPEY TURF CARE SYSTEMS,A0050717,02/11/2023,OPS0337353,44.57,N,,N,N
Pendle Borough Council,Operational Services,Transport Related Expense,Tprt : Repairs : General,3105,CAMPEY TURF CARE SYSTEMS,A0050717,02/11/2023,OPS0337353,44.57,N,,N,N
Pendle Borough Council,Human Resources,Indirect Employee Expenses,Emp : Medical Expenses,1236,LIBERATA UK LTD,A0051618,16/11/2023,PER0337560,27.77,N,,N,N
Pendle Borough Council,Finance,Premises Related Expense,Rents,2301,LIBERATA UK LTD,A0051618,09/11/2023,FIN0337525,514.83,N,,N,N
Pendle Borough Council,Finance,Supplies and Services,Subscriptions & Donations,4706,LIBERATA UK LTD,A0051618,23/11/2023,FIN0337843,412.5,N,,N,N
Pendle Borough Council,Finance,Agency Costs,Liberata,5301,LIBERATA UK LTD,A0051618,09/11/2023,FIN0337524,24783.77,N,,N,N
Pendle Borough Council,Finance,Agency Costs,Liberata U/C,5303,LIBERATA UK LTD,A0051618,15/11/2023,FIN0338009,6191.67,N,,N,N
Pendle Borough Council,Finance,Agency Costs,Liberata U/C,5303,LIBERATA UK LTD,A0051618,15/11/2023,FIN0338009,34439.05,N,,N,N
Pendle Borough Council,Finance,Agency Costs,Liberata U/C,5303,LIBERATA UK LTD,A0051618,15/11/2023,FIN0338009,30524.21,N,,N,N
Pendle Borough Council,Finance,Agency Costs,Liberata U/C,5303,LIBERATA UK LTD,A0051618,15/11/2023,FIN0338009,87715.02,N,,N,N
Pendle Borough Council,Finance,Agency Costs,Liberata U/C,5303,LIBERATA UK LTD,A0051618,15/11/2023,FIN0338009,57718.75,N,,N,N
Pendle Borough Council,Finance,Agency Costs,Liberata U/C,5303,LIBERATA UK LTD,A0051618,15/11/2023,FIN0338009,89614.79,N,,N,N
Pendle Borough Council,Finance,Agency Costs,Liberata U/C,5303,LIBERATA UK LTD,A0051618,15/11/2023,FIN0338009,117970.91,N,,N,N
Pendle Borough Council,Economic Growth,Capital Costs,Capital : Salaries,CD13,LIBERATA UK LTD,A0051618,09/11/2023,ECO0337515,814.62,N,,N,N
Pendle Borough Council,Economic Growth,Capital Costs,Capital : Salaries,CD13,LIBERATA UK LTD,A0051618,09/11/2023,ECO0337514,2420.13,N,,N,N
Pendle Borough Council,Economic Growth,Capital Costs,Capital : Salaries,CD13,LIBERATA UK LTD,A0051618,09/11/2023,ECO0337516,3947.83,N,,N,N
Pendle Borough Council,Property Services,Premises Related Expense,Electricity,2203,SOUTHERN ELECTRIC,A0051726,16/11/2023,EST4006757,-5327.6,N,,N,N
Pendle Borough Council,Property Services,Premises Related Expense,Electricity,2203,SOUTHERN ELECTRIC,A0051726,16/11/2023,EST0337179,113.6,N,,N,N
Pendle Borough Council,Property Services,Premises Related Expense,Electricity,2203,SOUTHERN ELECTRIC,A0051726,16/11/2023,EST0337180,174.67,N,,N,N
Pendle Borough Council,Property Services,Premises Related Expense,Electricity,2203,SOUTHERN ELECTRIC,A0051726,16/11/2023,EST0337642,5327.6,N,,N,N
Pendle Borough Council,Property Services,Premises Related Expense,Electricity,2203,SOUTHERN ELECTRIC,A0051726,23/11/2023,EST0337825,382.96,N,,N,N
Pendle Borough Council,Property Services,Premises Related Expense,Electricity,2203,SOUTHERN ELECTRIC,A0051726,16/11/2023,EST0337178,394.33,N,,N,N
Pendle Borough Council,Housing & Environmental Health,Supplies and Services,Private Water Supply Expenditure,4425,UNITED UTILITIES PROPERTY SOLUTIONS LTD,A0055020,02/11/2023,HEH0337313,271.55,N,,N,N
Pendle Borough Council,Finance,Supplies and Services,Consultants Fees,4401,LINK TREASURY SERVICES LIMITED,A0055209,09/11/2023,FIN0337526,4375,N,,N,N
Pendle Borough Council,Economic Growth,Premises Related Expense,Bldgs : R & M : Day To Day,2001,A BINNS & CO,A0057121,16/11/2023,ECO0337663,600,N,,N,N
Pendle Borough Council,Operational Services,Premises Related Expense,Bldgs : R & M : Day To Day,2001,A BINNS & CO,A0057121,23/11/2023,OPS0337755,2000,N,,N,N
Pendle Borough Council,Operational Services,Premises Related Expense,Bldgs : Vandalism Repairs,2005,A BINNS & CO,A0057121,16/11/2023,OPS0337609,680,N,,N,N
Pendle Borough Council,Operational Services,Premises Related Expense,Grounds : R & M : Day to Day : Routine,2101,A BINNS & CO,A0057121,16/11/2023,OPS0337609,680,N,,N,N
Pendle Borough Council,Operational Services,Premises Related Expense,Grounds : R & M : Day to Day : Routine,2101,A BINNS & CO,A0057121,16/11/2023,OPS0337617,1750,N,,N,N
Pendle Borough Council,Operational Services,Premises Related Expense,Grounds : R & M : Day to Day : Routine,2101,A BINNS & CO,A0057121,16/11/2023,OPS0337614,290,N,,N,N
Pendle Borough Council,Operational Services,,Fees Income : VATable,9202,A BINNS & CO,A0057121,23/11/2023,OPS0337755,2000,N,,N,N
Pendle Borough Council,Housing & Environmental Health,Supplies and Services,Other Expenses,4705,ALKINCOATES WOODLAND & NATURE RESERVE GRP,A0057349,23/11/2023,HEH0337740,3013.92,N,,N,N
Pendle Borough Council,Operational Services,Transport Related Expense,Tprt : Repairs : General,3105,UNITED UTILITIES,A0059246,09/11/2023,OPS0337470,36.69,N,,N,N
Pendle Borough Council,Operational Services,Transport Related Expense,Tprt : Repairs : General,3105,UNITED UTILITIES,A0059246,09/11/2023,OPS0337470,36.69,N,,N,N
Pendle Borough Council,Economic Growth,Supplies and Services,Processing Fees,4424,NSL LIMITED,A0059256,16/11/2023,ECO0337512,2290.8,N,,N,N
Pendle Borough Council,"Planning, Building Control & Regulatory Services",Supplies and Services,Adverts : Statutory Notice,4702,NATIONAL WORLD PUBLISHING LTD,A0059640,09/11/2023,PBC0337427,234.01,N,,N,N
Pendle Borough Council,"Planning, Building Control & Regulatory Services",Supplies and Services,Adverts : Statutory Notice,4702,NATIONAL WORLD PUBLISHING LTD,A0059640,09/11/2023,PBC0337441,286.01,N,,N,N
Pendle Borough Council,"Planning, Building Control & Regulatory Services",Supplies and Services,Adverts : Statutory Notice,4702,NATIONAL WORLD PUBLISHING LTD,A0059640,09/11/2023,PBC0337442,312.01,N,,N,N
Pendle Borough Council,"Planning, Building Control & Regulatory Services",Supplies and Services,Adverts : Statutory Notice,4702,NATIONAL WORLD PUBLISHING LTD,A0059640,09/11/2023,PBC0337440,328.29,N,,N,N
Pendle Borough Council,"Planning, Building Control & Regulatory Services",Supplies and Services,Adverts : Statutory Notice,4702,NATIONAL WORLD PUBLISHING LTD,A0059640,09/11/2023,PBC0337443,338.01,N,,N,N
Pendle Borough Council,"Planning, Building Control & Regulatory Services",Supplies and Services,Adverts : Statutory Notice,4702,NATIONAL WORLD PUBLISHING LTD,A0059640,09/11/2023,PBC0337429,364.01,N,,N,N
Pendle Borough Council,"Planning, Building Control & Regulatory Services",Supplies and Services,Adverts : Statutory Notice,4702,NATIONAL WORLD PUBLISHING LTD,A0059640,23/11/2023,PBC0337790,401.25,N,,N,N
Pendle Borough Council,"Planning, Building Control & Regulatory Services",Supplies and Services,Adverts : Statutory Notice,4702,NATIONAL WORLD PUBLISHING LTD,A0059640,16/11/2023,PBC0337624,474.2,N,,N,N
Pendle Borough Council,Housing & Environmental Health,Transfer Payments,Accommodation ,6103,HILL VIEW (PRIVATE) HOTEL,A0059754,23/11/2023,HEH0337784,22225,N,,N,N
Pendle Borough Council,Legal & Democratic Services,Supplies and Services,Other Expenses,4705,BRIGHT LITES UK LIMITED,A0059988,16/11/2023,LAD0337623,234,N,,N,N
Pendle Borough Council,Property Services,Premises Related Expense,Bldgs : R & M : Day To Day,2001,MAXIGIENE ENVIRONMENTAL SERVICES LTD,A0060911,02/11/2023,EST0337369,25,N,,N,N
Pendle Borough Council,Property Services,Premises Related Expense,Bldgs : R & M : Day To Day,2001,MAXIGIENE ENVIRONMENTAL SERVICES LTD,A0060911,16/11/2023,EST0337656,150,N,,N,N
Pendle Borough Council,Property Services,Premises Related Expense,Bldgs : R & M : Day To Day,2001,MAXIGIENE ENVIRONMENTAL SERVICES LTD,A0060911,16/11/2023,EST0337639,200,N,,N,N
Pendle Borough Council,Property Services,Premises Related Expense,Bldgs : R & M : Day To Day,2001,MAXIGIENE ENVIRONMENTAL SERVICES LTD,A0060911,16/11/2023,EST0337637,200,N,,N,N
Pendle Borough Council,Property Services,Premises Related Expense,Bldgs : R & M : Day To Day,2001,MAXIGIENE ENVIRONMENTAL SERVICES LTD,A0060911,16/11/2023,EST0337632,200,N,,N,N
Pendle Borough Council,Property Services,Premises Related Expense,Bldgs : R & M : Day To Day,2001,MAXIGIENE ENVIRONMENTAL SERVICES LTD,A0060911,16/11/2023,EST0337628,150,N,,N,N
Pendle Borough Council,Property Services,Premises Related Expense,Bldgs : R & M : Day To Day,2001,MAXIGIENE ENVIRONMENTAL SERVICES LTD,A0060911,16/11/2023,EST0337655,200,N,,N,N
Pendle Borough Council,Property Services,Premises Related Expense,Bldgs : R & M : Day To Day,2001,MAXIGIENE ENVIRONMENTAL SERVICES LTD,A0060911,16/11/2023,EST0337633,150,N,,N,N
Pendle Borough Council,Property Services,Premises Related Expense,Bldgs : R & M : Day To Day,2001,MAXIGIENE ENVIRONMENTAL SERVICES LTD,A0060911,16/11/2023,EST0337653,200,N,,N,N
Pendle Borough Council,Property Services,Premises Related Expense,Bldgs : R & M : Day To Day,2001,MAXIGIENE ENVIRONMENTAL SERVICES LTD,A0060911,16/11/2023,EST0337636,200,N,,N,N
Pendle Borough Council,Property Services,Premises Related Expense,Bldgs : R & M : Day To Day,2001,MAXIGIENE ENVIRONMENTAL SERVICES LTD,A0060911,16/11/2023,EST0337657,200,N,,N,N
Pendle Borough Council,Property Services,Premises Related Expense,Bldgs : R & M : Day To Day,2001,MAXIGIENE ENVIRONMENTAL SERVICES LTD,A0060911,16/11/2023,EST0337630,200,N,,N,N
Pendle Borough Council,Property Services,Premises Related Expense,Bldgs : R & M : Day To Day,2001,MAXIGIENE ENVIRONMENTAL SERVICES LTD,A0060911,16/11/2023,EST0337629,200,N,,N,N
Pendle Borough Council,Property Services,Premises Related Expense,Bldgs : R & M : Day To Day,2001,MAXIGIENE ENVIRONMENTAL SERVICES LTD,A0060911,16/11/2023,EST0337640,200,N,,N,N
Pendle Borough Council,Property Services,Premises Related Expense,Bldgs : R & M : Day To Day,2001,MAXIGIENE ENVIRONMENTAL SERVICES LTD,A0060911,16/11/2023,EST0337635,200,N,,N,N
Pendle Borough Council,Property Services,Premises Related Expense,Bldgs : R & M : Day To Day,2001,MAXIGIENE ENVIRONMENTAL SERVICES LTD,A0060911,16/11/2023,EST0337658,200,N,,N,N
Pendle Borough Council,Property Services,Premises Related Expense,Bldgs : R & M : Day To Day,2001,MAXIGIENE ENVIRONMENTAL SERVICES LTD,A0060911,16/11/2023,EST0337654,200,N,,N,N
Pendle Borough Council,Property Services,Premises Related Expense,Bldgs : R & M : Day To Day,2001,MAXIGIENE ENVIRONMENTAL SERVICES LTD,A0060911,16/11/2023,EST0337634,150,N,,N,N
Pendle Borough Council,Property Services,Supplies and Services,Other Expenses,4705,MAXIGIENE ENVIRONMENTAL SERVICES LTD,A0060911,02/11/2023,EST0337367,640,N,,N,N
Pendle Borough Council,Operational Services,Supplies and Services,EFM Materials,4004,CONTAINER CARE SOLUTIONS LIMITED,A0061112,16/11/2023,OPS0337591,2800,N,,N,N
Pendle Borough Council,Housing & Environmental Health,Supplies and Services,Other Expenses,4705,LANESHAWBRIDGE PARISH COUNCIL,A0062284,23/11/2023,HEH0337739,873.24,N,,N,N
Pendle Borough Council,Property Services,Premises Related Expense,Bldgs : R & M : Day To Day,2001,KEYPLUS SECURITY LIMITED,A0062723,16/11/2023,EST0337652,26.41,N,,N,N
Pendle Borough Council,Operational Services,Premises Related Expense,Grounds : R & M : Day to Day : Routine,2101,BOUNCEBACK SAFETY SERVICES LTD,A0063002,09/11/2023,OPS0337458,598,N,,N,N
Pendle Borough Council,Finance,Supplies and Services,EFM : Photocopiers,4001,RICOH UK LIMITED,A0063806,23/11/2023,FIN0337848,190.5,N,,N,N
Pendle Borough Council,Legal & Democratic Services,Supplies and Services,Members : Training Expenses,4609,CENTRE FOR GOVERNANCE AND SCRUTINY,A0064051,09/11/2023,LAD0337393,3500,N,,N,N
Pendle Borough Council,Legal & Democratic Services,Supplies and Services,Other Expenses,4705,COLNE ROYAL BRITISH LEGION CLUB,A0064455,09/11/2023,LAD0337420,220,N,,N,N
Pendle Borough Council,Human Resources,Transport Related Expense,Car Allows : Offs : Lease Exps,3806,ARNOLD CLARK VEHICLE MANAGEMENT,A0065524,16/11/2023,PER0337563,95.27,N,,N,N
Pendle Borough Council,Human Resources,Transport Related Expense,Car Allows : Offs : Lease Exps,3806,ARNOLD CLARK VEHICLE MANAGEMENT,A0065524,16/11/2023,PER0337563,116.09,N,,N,N
Pendle Borough Council,Legal & Democratic Services,Premises Related Expense,Rents,2301,THE RAINHALL CENTRE,A0066193,09/11/2023,LAD0337392,45,N,,N,N
Pendle Borough Council,Human Resources,Transport Related Expense,Tprt : Annual Hire Charge,3601,LEX AUTOLEASE LIMITED,A0066530,23/11/2023,PER0337722,343.04,N,,N,N
Pendle Borough Council,Property Services,Premises Related Expense,Bldgs : R & M : Day To Day,2001,SPEAKMAN CONTRACTORS LTD,A0066581,23/11/2023,EST0337626,715.5,N,,N,N
Pendle Borough Council,Property Services,Premises Related Expense,Bldgs : R & M : Day To Day,2001,SPEAKMAN CONTRACTORS LTD,A0066581,23/11/2023,EST0337626,437.69,N,,N,N
Pendle Borough Council,Property Services,Premises Related Expense,Bldgs : R & M : Day To Day,2001,SPEAKMAN CONTRACTORS LTD,A0066581,23/11/2023,EST0337626,125.7,N,,N,N
Pendle Borough Council,Property Services,Premises Related Expense,Bldgs : R & M : Day To Day,2001,SPEAKMAN CONTRACTORS LTD,A0066581,23/11/2023,EST0337626,401.18,N,,N,N
Pendle Borough Council,Property Services,Premises Related Expense,Bldgs : R & M : Day To Day,2001,SPEAKMAN CONTRACTORS LTD,A0066581,23/11/2023,EST0337626,153.62,N,,N,N
Pendle Borough Council,Property Services,Premises Related Expense,Bldgs : R & M : Day To Day,2001,SPEAKMAN CONTRACTORS LTD,A0066581,23/11/2023,EST0337626,202.93,N,,N,N
Pendle Borough Council,Property Services,Premises Related Expense,Bldgs : R & M : Day To Day,2001,SPEAKMAN CONTRACTORS LTD,A0066581,23/11/2023,EST0337626,139.65,N,,N,N
Pendle Borough Council,Property Services,Premises Related Expense,Bldgs : R & M : Day To Day,2001,SPEAKMAN CONTRACTORS LTD,A0066581,23/11/2023,EST0337626,139.65,N,,N,N
Pendle Borough Council,Property Services,Premises Related Expense,Bldgs : R & M : Day To Day,2001,SPEAKMAN CONTRACTORS LTD,A0066581,23/11/2023,EST0337626,251.37,N,,N,N
Pendle Borough Council,Property Services,Premises Related Expense,Bldgs : R & M : Day To Day,2001,SPEAKMAN CONTRACTORS LTD,A0066581,23/11/2023,EST0337626,27.93,N,,N,N
Pendle Borough Council,Property Services,Premises Related Expense,Bldgs : R & M : Day To Day,2001,SPEAKMAN CONTRACTORS LTD,A0066581,23/11/2023,EST0337626,111.16,N,,N,N
Pendle Borough Council,Property Services,Premises Related Expense,Bldgs : R & M : Day To Day,2001,SPEAKMAN CONTRACTORS LTD,A0066581,23/11/2023,EST0337626,123.37,N,,N,N
Pendle Borough Council,Property Services,Premises Related Expense,Bldgs : R & M : Day To Day,2001,SPEAKMAN CONTRACTORS LTD,A0066581,23/11/2023,EST0337626,331.82,N,,N,N
Pendle Borough Council,Property Services,Premises Related Expense,Bldgs : Adaptation/Alteration,2007,SPEAKMAN CONTRACTORS LTD,A0066581,23/11/2023,EST0337626,6949.37,N,,N,N
Pendle Borough Council,Property Services,Capital Costs,Capital : Payments,CD14,SPEAKMAN CONTRACTORS LTD,A0066581,23/11/2023,EST0337626,4788,N,,N,N
Pendle Borough Council,Property Services,Capital Costs,Capital : Payments,CD14,SPEAKMAN CONTRACTORS LTD,A0066581,23/11/2023,EST0337626,8375,N,,N,N
Pendle Borough Council,Economic Growth,Premises Related Expense,Bldgs : R & M : Day To Day,2001,LIVESEY BUILDING MAINTENANCE CONTRACTORS,A0066865,02/11/2023,ECO0337387,18.5,N,,N,N
Pendle Borough Council,Economic Growth,Premises Related Expense,Bldgs : R & M : Day To Day,2001,LIVESEY BUILDING MAINTENANCE CONTRACTORS,A0066865,02/11/2023,ECO0337387,110,N,,N,N
Pendle Borough Council,Economic Growth,Premises Related Expense,Grounds : R & M : Day to Day : Routine,2101,LIVESEY BUILDING MAINTENANCE CONTRACTORS,A0066865,02/11/2023,ECO0337385,12,N,,N,N
Pendle Borough Council,Economic Growth,Premises Related Expense,Grounds : R & M : Day to Day : Routine,2101,LIVESEY BUILDING MAINTENANCE CONTRACTORS,A0066865,02/11/2023,ECO0337385,120,N,,N,N
Pendle Borough Council,Economic Growth,Premises Related Expense,Grounds : R & M : Day to Day : Routine,2101,LIVESEY BUILDING MAINTENANCE CONTRACTORS,A0066865,02/11/2023,ECO0337386,277.12,N,,N,N
Pendle Borough Council,Economic Growth,Premises Related Expense,Grounds : R & M : Day to Day : Routine,2101,LIVESEY BUILDING MAINTENANCE CONTRACTORS,A0066865,02/11/2023,ECO0337386,69.28,N,,N,N
Pendle Borough Council,Economic Growth,Premises Related Expense,Grounds : R & M : Day to Day : Routine,2101,LIVESEY BUILDING MAINTENANCE CONTRACTORS,A0066865,02/11/2023,ECO0337386,257.58,N,,N,N
Pendle Borough Council,Economic Growth,Premises Related Expense,Grounds : R & M : Day to Day : Routine,2101,LIVESEY BUILDING MAINTENANCE CONTRACTORS,A0066865,02/11/2023,ECO0337386,6.02,N,,N,N
Pendle Borough Council,Economic Growth,Premises Related Expense,Grounds : R & M : Day to Day : Routine,2101,LIVESEY BUILDING MAINTENANCE CONTRACTORS,A0066865,02/11/2023,ECO0337386,1330,N,,N,N
Pendle Borough Council,Human Resources,Indirect Employee Expenses,Emp : Medical Expenses,1236,PEOPLE ASSET MANAGEMENT LIMITED,A0067613,23/11/2023,PER4006766,-142.5,N,,N,N
Pendle Borough Council,Human Resources,Indirect Employee Expenses,Emp : Medical Expenses,1236,PEOPLE ASSET MANAGEMENT LIMITED,A0067613,02/11/2023,PER0337301,62.84,N,,N,N
Pendle Borough Council,Human Resources,Indirect Employee Expenses,Emp : Medical Expenses,1236,PEOPLE ASSET MANAGEMENT LIMITED,A0067613,02/11/2023,PER0337302,142.5,N,,N,N
Pendle Borough Council,Human Resources,Indirect Employee Expenses,Emp : Medical Expenses,1236,PEOPLE ASSET MANAGEMENT LIMITED,A0067613,02/11/2023,PER0337303,142.5,N,,N,N
Pendle Borough Council,Human Resources,Indirect Employee Expenses,Emp : Medical Expenses,1236,PEOPLE ASSET MANAGEMENT LIMITED,A0067613,23/11/2023,PER0337720,142.5,N,,N,N
Pendle Borough Council,Human Resources,Indirect Employee Expenses,Emp : Medical Expenses,1236,PEOPLE ASSET MANAGEMENT LIMITED,A0067613,02/11/2023,PER0337304,262.5,N,,N,N
Pendle Borough Council,Human Resources,Indirect Employee Expenses,Emp : Medical Expenses,1236,PEOPLE ASSET MANAGEMENT LIMITED,A0067613,23/11/2023,PER0337721,395,N,,N,N
Pendle Borough Council,Operational Services,Supplies and Services,EFM : Office and computer equipment,4002,LIMPET LABELS UK LIMITED,A0067671,02/11/2023,OPS0337355,739.35,N,,N,N
Pendle Borough Council,Operational Services,Supplies and Services,EFM Materials,4004,LIMPET LABELS UK LIMITED,A0067671,16/11/2023,OPS0337589,248,N,,N,N
Pendle Borough Council,Economic Growth,Supplies and Services,Processing Fees,4424,CHIPSIDE LTD,A0068587,16/11/2023,ECO0337664,9.3,N,,N,N
Pendle Borough Council,Operational Services,Supplies and Services,Expenditure : Materials,0002,SHERRIFF AMENITY - AGROVISTA UK LIMITED,A0068904,02/11/2023,OPS0337323,2059.2,N,,N,N
Pendle Borough Council,Economic Growth,,Other Government Grants,9030,ACTIVE LANCASHIRE LIMITED,A0070149,02/11/2023,ECO0337383,6652,N,1159832,N,N
Pendle Borough Council,Economic Growth,Capital Costs,Consultancy,ce45,PEARL 2,A0070545,23/11/2023,ECO0337677,2836,N,,N,N
Pendle Borough Council,Operational Services,Supplies and Services,Sub-Contractors,4007,RENTOKIL INITIAL UK LIMITED,A0072816,02/11/2023,OPS0337336,27.84,N,,N,N
Pendle Borough Council,Operational Services,Supplies and Services,Sub-Contractors,4007,RENTOKIL INITIAL UK LIMITED,A0072816,16/11/2023,OPS0337588,309.25,N,,N,N
Pendle Borough Council,Operational Services,Supplies and Services,Sub-Contractors,4007,RENTOKIL INITIAL UK LIMITED,A0072816,23/11/2023,OPS0337741,468.96,N,,N,N
Pendle Borough Council,Operational Services,Supplies and Services,Sub-Contractors,4007,RENTOKIL INITIAL UK LIMITED,A0072816,23/11/2023,OPS0337742,643.34,N,,N,N
Pendle Borough Council,Operational Services,Supplies and Services,Sub-Contractors,4007,RENTOKIL INITIAL UK LIMITED,A0072816,23/11/2023,OPS0337742,6.34,N,,N,N
Pendle Borough Council,Operational Services,Supplies and Services,Sub-Contractors,4007,RENTOKIL INITIAL UK LIMITED,A0072816,16/11/2023,OPS0337588,46.57,N,,N,N
Pendle Borough Council,Operational Services,Supplies and Services,Other Expenses,4705,RENTOKIL INITIAL UK LIMITED,A0072816,23/11/2023,OPS0337742,92.14,N,,N,N
Pendle Borough Council,Operational Services,Premises Related Expense,Grounds : R & M : Day to Day : Routine,2101,FENLAND LEISURE PRODUCTS LIMITED,A0072950,16/11/2023,OPS0337604,142,N,,N,N
Pendle Borough Council,Property Services,Supplies and Services,Other Expenses,4705,BURNLEY AND PENDLE ENERGY ASSESSORS LTD,A0077075,02/11/2023,EST0337364,150,N,,N,N
Pendle Borough Council,Property Services,Supplies and Services,Other Expenses,4705,BURNLEY AND PENDLE ENERGY ASSESSORS LTD,A0077075,02/11/2023,EST0337365,150,N,,N,N
Pendle Borough Council,Property Services,Supplies and Services,Other Expenses,4705,BURNLEY AND PENDLE ENERGY ASSESSORS LTD,A0077075,02/11/2023,EST0337366,150,N,,N,N
Pendle Borough Council,Property Services,Premises Related Expense,Bldgs : R & M : Day To Day,2001,ARROWLINE LIMITED,A0077222,02/11/2023,EST0337360,561.19,N,,N,N
Pendle Borough Council,Property Services,Premises Related Expense,Bldgs : R & M : Day To Day,2001,ARROWLINE LIMITED,A0077222,02/11/2023,EST0337360,841.78,N,,N,N
Pendle Borough Council,Human Resources,Supplies and Services,Seminars etc All Costs,4601,HEARFIRST,A0077266,23/11/2023,PER0337719,3000,N,,N,N
Pendle Borough Council,Legal & Democratic Services,Supplies and Services,Printing & Stationery,4301,THOMSON REUTERS PROFESSIONAL UK LIMITED,A0077400,09/11/2023,LAD0337424,1153.95,N,,N,N
Pendle Borough Council,Operational Services,Supplies and Services,EFM : Other Equipment,4003,GLASDON UK LIMITED,A0078667,23/11/2023,OPS0337838,2670.22,N,,N,N
Pendle Borough Council,Operational Services,Supplies and Services,EFM Materials,4004,GLASDON UK LIMITED,A0078667,23/11/2023,OPS0337838,168,N,,N,N
Pendle Borough Council,Operational Services,Supplies and Services,Publicity & advertisement,4704,LANCASHIRE INTERPRETATION & TRANSLATION SERVICES,A0081140,02/11/2023,OPS0337339,390,N,,N,N
Pendle Borough Council,Finance,Support Services,District Audit Fees,7202,GRANT THORNTON UK LLP,A0084044,09/11/2023,FIN0337523,35912,N,,N,N
Pendle Borough Council,Housing & Environmental Health,Supplies and Services,Other Expenses,4705,BLACKO PARISH COUNCIL,A0084321,16/11/2023,HEH0337581,1000,N,,N,N
Pendle Borough Council,Finance,Supplies and Services,Allpay,4422,ALLPAY LIMITED,A0084372,09/11/2023,FIN0337537,11,N,,N,N
Pendle Borough Council,Finance,Supplies and Services,Allpay,4422,ALLPAY LIMITED,A0084372,09/11/2023,FIN0337538,11,N,,N,N
Pendle Borough Council,Finance,Supplies and Services,Allpay,4422,ALLPAY LIMITED,A0084372,09/11/2023,FIN0337535,18.65,N,,N,N
Pendle Borough Council,Finance,Supplies and Services,Allpay,4422,ALLPAY LIMITED,A0084372,09/11/2023,FIN0337536,25.27,N,,N,N
Pendle Borough Council,Finance,Supplies and Services,Allpay,4422,ALLPAY LIMITED,A0084372,09/11/2023,FIN0337540,66.41,N,,N,N
Pendle Borough Council,Finance,Supplies and Services,Allpay,4422,ALLPAY LIMITED,A0084372,09/11/2023,FIN0337539,2001.25,N,,N,N
Pendle Borough Council,Housing & Environmental Health,,Housing Impts/Cap Repairs,0104,ELITE PLUMBING,A0084584,23/11/2023,HEH0337752,120,N,,N,N
Pendle Borough Council,Housing & Environmental Health,,Housing Impts/Cap Repairs,0104,ELITE PLUMBING,A0084584,23/11/2023,HEH0337753,1600,N,,N,N
Pendle Borough Council,Housing & Environmental Health,Capital Costs,Ren Grant : 1996 Act,CH22,ELITE PLUMBING,A0084584,16/11/2023,HEH0337570,10436,N,,N,N
Pendle Borough Council,Finance,Supplies and Services,Consultants Fees,4401,ALLIANCE LEISURE SERVICES LIMITED,A0084806,16/11/2023,FIN0337619,9860,N,,N,N
Pendle Borough Council,Housing & Environmental Health,Supplies and Services,Other Expenses,4705,HIGHERFORD RESIDENTS ACTION GROUP,A0085026,02/11/2023,HEH0337357,750,N,,N,N
Pendle Borough Council,Economic Growth,Premises Related Expense,Grounds : R & M : Day to Day : Routine,2101,KEVIN WILKINSON LANDSCAPES LTD,A0085660,16/11/2023,ECO0337517,899.8,N,,N,N
Pendle Borough Council,Economic Growth,Premises Related Expense,Grounds : R & M : Day to Day : Routine,2101,MARCHBRIDGE BUILDERS LIMITED,A0087284,02/11/2023,ECO0337380,332,N,,N,N
Pendle Borough Council,Finance,Premises Related Expense,Electricity,2203,EDF ENERGY,A0088932,07/11/2023,FIN0338201,60.87,N,,N,N
Pendle Borough Council,Finance,Premises Related Expense,Electricity,2203,EDF ENERGY,A0088932,07/11/2023,FIN0338201,95.42,N,,N,N
Pendle Borough Council,Finance,Premises Related Expense,Electricity,2203,EDF ENERGY,A0088932,07/11/2023,FIN0338201,51,N,,N,N
Pendle Borough Council,Finance,Premises Related Expense,Electricity,2203,EDF ENERGY,A0088932,07/11/2023,FIN0338201,104.28,N,,N,N
Pendle Borough Council,Finance,Premises Related Expense,Electricity,2203,EDF ENERGY,A0088932,07/11/2023,FIN0338201,187.87,N,,N,N
Pendle Borough Council,Finance,Premises Related Expense,Electricity,2203,EDF ENERGY,A0088932,07/11/2023,FIN0338201,312.81,N,,N,N
Pendle Borough Council,Finance,Premises Related Expense,Electricity,2203,EDF ENERGY,A0088932,07/11/2023,FIN0338201,291.59,N,,N,N
Pendle Borough Council,Finance,Premises Related Expense,Electricity,2203,EDF ENERGY,A0088932,07/11/2023,FIN0338201,105.69,N,,N,N
Pendle Borough Council,Finance,Premises Related Expense,Electricity,2203,EDF ENERGY,A0088932,07/11/2023,FIN0338201,209,N,,N,N
Pendle Borough Council,Finance,Premises Related Expense,Electricity,2203,EDF ENERGY,A0088932,07/11/2023,FIN0338201,29.11,N,,N,N
Pendle Borough Council,Finance,Premises Related Expense,Electricity,2203,EDF ENERGY,A0088932,07/11/2023,FIN0338201,1657.29,N,,N,N
Pendle Borough Council,Finance,Premises Related Expense,Electricity,2203,EDF ENERGY,A0088932,07/11/2023,FIN0338201,693.88,N,,N,N
Pendle Borough Council,Finance,Premises Related Expense,Electricity,2203,EDF ENERGY,A0088932,07/11/2023,FIN0338201,53.37,N,,N,N
Pendle Borough Council,Finance,Premises Related Expense,Electricity,2203,EDF ENERGY,A0088932,07/11/2023,FIN0338201,51.02,N,,N,N
Pendle Borough Council,Finance,Premises Related Expense,Electricity,2203,EDF ENERGY,A0088932,07/11/2023,FIN0338201,87.86,N,,N,N
Pendle Borough Council,Finance,Premises Related Expense,Electricity,2203,EDF ENERGY,A0088932,07/11/2023,FIN0338201,34.42,N,,N,N
Pendle Borough Council,Finance,Premises Related Expense,Electricity,2203,EDF ENERGY,A0088932,07/11/2023,FIN0338201,98.24,N,,N,N
Pendle Borough Council,Finance,Premises Related Expense,Electricity,2203,EDF ENERGY,A0088932,07/11/2023,FIN0338201,30.35,N,,N,N
Pendle Borough Council,Finance,Premises Related Expense,Electricity,2203,EDF ENERGY,A0088932,07/11/2023,FIN0338201,41.26,N,,N,N
Pendle Borough Council,Finance,Premises Related Expense,Electricity,2203,EDF ENERGY,A0088932,07/11/2023,FIN0338201,445.07,N,,N,N
Pendle Borough Council,Finance,Premises Related Expense,Electricity,2203,EDF ENERGY,A0088932,07/11/2023,FIN0338201,23.88,N,,N,N
Pendle Borough Council,Finance,Premises Related Expense,Electricity,2203,EDF ENERGY,A0088932,07/11/2023,FIN0338201,250.58,N,,N,N
Pendle Borough Council,Finance,Premises Related Expense,Electricity,2203,EDF ENERGY,A0088932,07/11/2023,FIN0338201,44.12,N,,N,N
Pendle Borough Council,Finance,Premises Related Expense,Electricity,2203,EDF ENERGY,A0088932,07/11/2023,FIN0338201,105.38,N,,N,N
Pendle Borough Council,Finance,Premises Related Expense,Electricity,2203,EDF ENERGY,A0088932,07/11/2023,FIN0338201,1258.24,N,,N,N
Pendle Borough Council,Finance,Premises Related Expense,Electricity,2203,EDF ENERGY,A0088932,07/11/2023,FIN0338201,639.99,N,,N,N
Pendle Borough Council,Finance,Supplies and Services,Other Expenses,4705,EDF ENERGY,A0088932,07/11/2023,FIN0338201,23.51,N,,N,N
Pendle Borough Council,Finance,Supplies and Services,Other Expenses,4705,EDF ENERGY,A0088932,07/11/2023,FIN0338201,29.26,N,,N,N
Pendle Borough Council,Revenues Services,Supplies and Services,Subscriptions & Donations,4706,INFORM CPI LIMITED,A0089895,16/11/2023,TRE0337555,549,N,,N,N
Pendle Borough Council,Operational Services,Agency Staff,Emp : Agency Wages,1004,RAPID RECRUIT LIMITED,A0090080,09/11/2023,OPS0337444,66.23,N,,N,N
Pendle Borough Council,Operational Services,Agency Staff,Emp : Agency Wages,1004,RAPID RECRUIT LIMITED,A0090080,16/11/2023,OPS0337606,75.81,N,,N,N
Pendle Borough Council,Operational Services,Premises Related Expense,Grounds : R & M : Day to Day : Routine,2101,MARTIN LEE,A0090177,02/11/2023,OPS0337324,446.5,N,,N,N
Pendle Borough Council,Operational Services,Premises Related Expense,Grounds : R & M : Day to Day : Routine,2101,MARTIN LEE,A0090177,02/11/2023,OPS0337324,1233.5,N,,N,N
Pendle Borough Council,Operational Services,Premises Related Expense,Grounds : R & M : Day to Day : Routine,2101,MARTIN LEE,A0090177,02/11/2023,OPS0337324,270,N,,N,N
Pendle Borough Council,Operational Services,Premises Related Expense,Grounds : R & M : Day to Day : Routine,2101,LANDSCAPE SUPPLY COMPANY,A0090209,09/11/2023,OPS0337449,85.73,N,,N,N
Pendle Borough Council,Operational Services,Premises Related Expense,Grounds : R & M : Day to Day : Routine,2101,LANDSCAPE SUPPLY COMPANY,A0090209,09/11/2023,OPS0337449,68.32,N,,N,N
Pendle Borough Council,Economic Growth,Premises Related Expense,Bldgs : R & M : Day To Day,2001,GREEN CLEAN RESTORATION,A0090368,16/11/2023,ECO0337667,2610,N,,N,N
Pendle Borough Council,Operational Services,Premises Related Expense,Water & Sewerage,2501,AQUAM WATER SERVICES LIMITED,A0090390,23/11/2023,OPS0337837,439.01,N,,N,N
Pendle Borough Council,Economic Growth,Supplies and Services,Grants/Contributions,4739,LOVE LOCAL SOLUTIONS LIMITED,A0090486,02/11/2023,ECO0337379,695,N,,N,N
Pendle Borough Council,Revenues Services,Supplies and Services,DSS Collection Fee,4414,PS&P LTD,A0090720,02/11/2023,TRE0337311,11,N,,N,N
Pendle Borough Council,Revenues Services,Supplies and Services,DSS Collection Fee,4414,PS&P LTD,A0090720,23/11/2023,TRE0337725,14,N,,N,N
Pendle Borough Council,Finance,Premises Related Expense,Gas,2202,SEFE ENERGY LIMITED,A0090838,27/11/2023,FIN0338185,18.56,N,,N,N
Pendle Borough Council,Finance,Premises Related Expense,Gas,2202,SEFE ENERGY LIMITED,A0090838,27/11/2023,FIN0338186,37.22,N,,N,N
Pendle Borough Council,Finance,Premises Related Expense,Gas,2202,SEFE ENERGY LIMITED,A0090838,27/11/2023,FIN0338198,87.05,N,,N,N
Pendle Borough Council,Finance,Premises Related Expense,Gas,2202,SEFE ENERGY LIMITED,A0090838,27/11/2023,FIN0338199,115.8,N,,N,N
Pendle Borough Council,Finance,Premises Related Expense,Gas,2202,SEFE ENERGY LIMITED,A0090838,27/11/2023,FIN0338193,54.76,N,,N,N
Pendle Borough Council,Finance,Premises Related Expense,Gas,2202,SEFE ENERGY LIMITED,A0090838,27/11/2023,FIN0338197,286.47,N,,N,N
Pendle Borough Council,Finance,Premises Related Expense,Gas,2202,SEFE ENERGY LIMITED,A0090838,27/11/2023,FIN0338200,107.98,N,,N,N
Pendle Borough Council,Finance,Premises Related Expense,Gas,2202,SEFE ENERGY LIMITED,A0090838,27/11/2023,FIN0338182,229.66,N,,N,N
Pendle Borough Council,Finance,Premises Related Expense,Gas,2202,SEFE ENERGY LIMITED,A0090838,27/11/2023,FIN0338187,39.57,N,,N,N
Pendle Borough Council,Finance,Premises Related Expense,Gas,2202,SEFE ENERGY LIMITED,A0090838,27/11/2023,FIN0338184,60.74,N,,N,N
Pendle Borough Council,Finance,Premises Related Expense,Gas,2202,SEFE ENERGY LIMITED,A0090838,27/11/2023,FIN0338183,31.14,N,,N,N
Pendle Borough Council,Finance,Premises Related Expense,Gas,2202,SEFE ENERGY LIMITED,A0090838,27/11/2023,FIN0338195,258.66,N,,N,N
Pendle Borough Council,Finance,Premises Related Expense,Gas,2202,SEFE ENERGY LIMITED,A0090838,27/11/2023,FIN0338190,129.81,N,,N,N
Pendle Borough Council,Property Services,Premises Related Expense,Grounds : R & M : Day to Day : Routine,2101,H2O FLOWTECH LIMITED,A0090845,02/11/2023,EST0337362,439.19,N,,N,N
Pendle Borough Council,Operational Services,Transport Related Expense,Tprt : Repairs : General,3105,SUPER AUTO SAVER,A0090951,16/11/2023,OPS0337611,12,N,,N,N
Pendle Borough Council,Economic Growth,Capital Costs,Capital : Payments,CD14,SITE SURVEYING SERVICES LIMITED,A0090952,16/11/2023,ECO0337513,1495,N,,N,N
Pendle Borough Council,"Planning, Building Control & Regulatory Services",Supplies and Services,EFM : Other Equipment,4003,RESTORE DATASHRED,A0091201,09/11/2023,PBC0337490,170.5,N,,N,N
Pendle Borough Council,Policy & Commissioning,Supplies and Services,Grant Funding,4737,PENDLE NEW NEIGHBOURS,A0091208,16/11/2023,POL0337582,7800,N,,N,N
Pendle Borough Council,I.T Services,Supplies and Services,Computer Charges,4509,SOFTCAT,A0091298,09/11/2023,ITS0337437,6189.75,N,,N,N
Pendle Borough Council,Policy & Commissioning,Supplies and Services,Other Expenses,4705,JADU CREATIVE LIMITED,A0091362,09/11/2023,POL0337510,2025,N,,N,N
Pendle Borough Council,Housing & Environmental Health,Capital Costs,Ren Grant : 1996 Act,CH22,THE EXCELLENT RAMP SYSTEM LIMITED,A0091363,02/11/2023,HEH0337309,4480,N,,N,N
Pendle Borough Council,Housing & Environmental Health,Capital Costs,Ren Grant : 1996 Act,CH22,THE EXCELLENT RAMP SYSTEM LIMITED,A0091363,02/11/2023,HEH0337310,5125,N,,N,N
Pendle Borough Council,Housing & Environmental Health,Capital Costs,Ren Grant : 1996 Act,CH22,THE EXCELLENT RAMP SYSTEM LIMITED,A0091363,23/11/2023,HEH0337786,6800,N,,N,N
Pendle Borough Council,Housing & Environmental Health,Capital Costs,Ren Grant : 1996 Act,CH22,THE EXCELLENT RAMP SYSTEM LIMITED,A0091363,23/11/2023,HEH0337718,8945,N,,N,N
Pendle Borough Council,Operational Services,Supplies and Services,Miscellaneous : Other,4707,PERMISERV LIMITED,A0091396,16/11/2023,OPS0337598,104.09,N,,N,N
Pendle Borough Council,Operational Services,Premises Related Expense,Grounds : R & M : Day to Day : Routine,2101,MARTINS COUNTRYSIDE CONTRACTING LIMITED,A0091415,02/11/2023,OPS0337325,433,N,,N,N
Pendle Borough Council,Operational Services,Premises Related Expense,Grounds : R & M : Day to Day : Routine,2101,MARTINS COUNTRYSIDE CONTRACTING LIMITED,A0091415,02/11/2023,OPS0337351,897,N,,N,N
Pendle Borough Council,Housing & Environmental Health,Supplies and Services,Other Expenses,4705,RENT UK PROPERTY LIMITED,A0091433,16/11/2023,HEH0337673,1080,N,,N,N
Pendle Borough Council,I.T Services,Supplies and Services,Computer Charges,4509,STORM TECHNOLOGIES LIMITED,A0091493,09/11/2023,ITS0337435,404,N,,N,N
Pendle Borough Council,I.T Services,Supplies and Services,Other Expenses,4705,STORM TECHNOLOGIES LIMITED,A0091493,09/11/2023,ITS0337434,149.23,N,,N,N
Pendle Borough Council,"Planning, Building Control & Regulatory Services",,Fees Income : Non-VATable,9302,PORTALPLANQUEST LIMITED,A0091554,09/11/2023,PBC0337426,96,N,,N,N
Pendle Borough Council,"Planning, Building Control & Regulatory Services",,Fees Income : Non-VATable,9302,PORTALPLANQUEST LIMITED,A0091554,16/11/2023,PBC0337556,231,N,,N,N
Pendle Borough Council,"Planning, Building Control & Regulatory Services",,Fees Income : Non-VATable,9302,PORTALPLANQUEST LIMITED,A0091554,23/11/2023,PBC0337787,234,N,,N,N
Pendle Borough Council,"Planning, Building Control & Regulatory Services",,Fees Income : Non-VATable,9302,PORTALPLANQUEST LIMITED,A0091554,09/11/2023,PBC0337492,462,N,,N,N
Pendle Borough Council,Operational Services,Agency Staff,Emp : Basic Wages,1001,NW RECRUITMENT SERVICES LIMITED,A0091588,09/11/2023,OPS0337451,5056,N,,N,N
Pendle Borough Council,Operational Services,Agency Staff,Emp : Basic Wages,1001,NW RECRUITMENT SERVICES LIMITED,A0091588,02/11/2023,OPS0337327,5322.33,N,,N,N
Pendle Borough Council,Operational Services,Agency Staff,Emp : Basic Wages,1001,NW RECRUITMENT SERVICES LIMITED,A0091588,16/11/2023,OPS0337618,5714.86,N,,N,N
Pendle Borough Council,Legal & Democratic Services,Agency Staff,Emp : Agency Wages,1004,NW RECRUITMENT SERVICES LIMITED,A0091588,02/11/2023,LAD0337308,224.7,N,,N,N
Pendle Borough Council,Legal & Democratic Services,Agency Staff,Emp : Agency Wages,1004,NW RECRUITMENT SERVICES LIMITED,A0091588,09/11/2023,LAD0337519,288.37,N,,N,N
Pendle Borough Council,Legal & Democratic Services,Agency Staff,Emp : Agency Wages,1004,NW RECRUITMENT SERVICES LIMITED,A0091588,02/11/2023,HEH0337358,299.6,N,,N,N
Pendle Borough Council,Legal & Democratic Services,Agency Staff,Emp : Agency Wages,1004,NW RECRUITMENT SERVICES LIMITED,A0091588,23/11/2023,LAD0337821,329.56,N,,N,N
Pendle Borough Council,Legal & Democratic Services,Agency Staff,Emp : Agency Wages,1004,NW RECRUITMENT SERVICES LIMITED,A0091588,16/11/2023,LAD0337621,389.48,N,,N,N
Pendle Borough Council,Legal & Democratic Services,Agency Staff,Emp : Agency Wages,1004,NW RECRUITMENT SERVICES LIMITED,A0091588,02/11/2023,LAD0337307,419.44,N,,N,N
Pendle Borough Council,Operational Services,Agency Staff,Emp : Agency Wages,1004,NW RECRUITMENT SERVICES LIMITED,A0091588,23/11/2023,OPS0337756,72.95,N,,N,N
Pendle Borough Council,Operational Services,Agency Staff,Emp : Agency Wages,1004,NW RECRUITMENT SERVICES LIMITED,A0091588,09/11/2023,OPS0337450,269.92,N,,N,N
Pendle Borough Council,Operational Services,Agency Staff,Emp : Agency Wages,1004,NW RECRUITMENT SERVICES LIMITED,A0091588,02/11/2023,OPS0337331,3456.97,N,,N,N
Pendle Borough Council,Operational Services,Agency Staff,Emp : Agency Wages,1004,NW RECRUITMENT SERVICES LIMITED,A0091588,23/11/2023,OPS0337738,3555.23,N,,N,N
Pendle Borough Council,Operational Services,Agency Staff,Emp : Agency Wages,1004,NW RECRUITMENT SERVICES LIMITED,A0091588,23/11/2023,OPS0337744,3766.82,N,,N,N
Pendle Borough Council,Operational Services,Agency Staff,Emp : Agency Wages,1004,NW RECRUITMENT SERVICES LIMITED,A0091588,23/11/2023,OPS0337745,4426.98,N,,N,N
Pendle Borough Council,Operational Services,Agency Staff,Emp : Agency Wages,1004,NW RECRUITMENT SERVICES LIMITED,A0091588,02/11/2023,OPS0337331,1805.62,N,,N,N
Pendle Borough Council,Operational Services,Agency Staff,Emp : Agency Wages,1004,NW RECRUITMENT SERVICES LIMITED,A0091588,23/11/2023,OPS0337745,2065.86,N,,N,N
Pendle Borough Council,Operational Services,Agency Staff,Emp : Agency Wages,1004,NW RECRUITMENT SERVICES LIMITED,A0091588,23/11/2023,OPS0337744,2604.91,N,,N,N
Pendle Borough Council,Operational Services,Agency Staff,Emp : Agency Wages,1004,NW RECRUITMENT SERVICES LIMITED,A0091588,23/11/2023,OPS0337738,2709.22,N,,N,N
Pendle Borough Council,Operational Services,Agency Staff,Emp : Agency Wages,1004,NW RECRUITMENT SERVICES LIMITED,A0091588,23/11/2023,OPS0337744,955.64,N,,N,N
Pendle Borough Council,Operational Services,Agency Staff,Emp : Agency Wages,1004,NW RECRUITMENT SERVICES LIMITED,A0091588,23/11/2023,OPS0337738,1050.22,N,,N,N
Pendle Borough Council,Operational Services,Agency Staff,Emp : Agency Wages,1004,NW RECRUITMENT SERVICES LIMITED,A0091588,02/11/2023,OPS0337331,1189.48,N,,N,N
Pendle Borough Council,Operational Services,Agency Staff,Emp : Agency Wages,1004,NW RECRUITMENT SERVICES LIMITED,A0091588,23/11/2023,OPS0337745,2032.68,N,,N,N
Pendle Borough Council,Housing & Environmental Health,,Housing Impts/Cap Repairs,0104,RHEA PROJECTS LIMITED,A0091628,23/11/2023,HEH0337750,300,N,,N,N
Pendle Borough Council,Housing & Environmental Health,,Housing Impts/Cap Repairs,0104,RHEA PROJECTS LIMITED,A0091628,02/11/2023,HEH0337241,1970,N,,N,N
Pendle Borough Council,Housing & Environmental Health,,Housing Impts/Cap Repairs,0104,RHEA PROJECTS LIMITED,A0091628,23/11/2023,HEH0337751,1995,N,,N,N
Pendle Borough Council,Property Services,Supplies and Services,Performing Rights Fees,4406,PPL PRS LIMITED,A0091668,23/11/2023,EST0337834,209.97,N,,N,N
Pendle Borough Council,Property Services,Supplies and Services,Performing Rights Fees,4406,PPL PRS LIMITED,A0091668,23/11/2023,EST0337834,908.72,N,,N,N
Pendle Borough Council,Economic Growth,Capital Costs,Consultancy,CE45,PEARL TOGETHER LIMITED,A0091725,23/11/2023,ECO4006765,-5390,N,,N,N
Pendle Borough Council,Economic Growth,Capital Costs,Consultancy,CE45,PEARL TOGETHER LIMITED,A0091725,23/11/2023,ECO0337679,475,N,,N,N
Pendle Borough Council,Economic Growth,Capital Costs,Consultancy,CE45,PEARL TOGETHER LIMITED,A0091725,23/11/2023,ECO0337678,7380,N,,N,N
Pendle Borough Council,Finance,Supplies and Services,Seminars etc All Costs,4601,ACAS,A0091750,17/11/2023,FIN0338011,125,N,,N,N
Pendle Borough Council,Housing & Environmental Health,Agency Staff,Emp : Agency Wages,1004,THE OYSTER PARTNERSHIP LIMITED,A0091781,02/11/2023,HEH0337390,1323,N,,N,N
Pendle Borough Council,Housing & Environmental Health,Agency Staff,Emp : Agency Wages,1004,THE OYSTER PARTNERSHIP LIMITED,A0091781,02/11/2023,HEH0337389,1529.94,N,,N,N
Pendle Borough Council,Housing & Environmental Health,Agency Staff,Emp : Agency Wages,1004,THE OYSTER PARTNERSHIP LIMITED,A0091781,02/11/2023,HEH0337312,1544.9,N,,N,N
Pendle Borough Council,Housing & Environmental Health,Agency Staff,Emp : Agency Wages,1004,THE OYSTER PARTNERSHIP LIMITED,A0091781,16/11/2023,HEH0337567,1550.35,N,,N,N
Pendle Borough Council,Housing & Environmental Health,Agency Staff,Emp : Agency Wages,1004,THE OYSTER PARTNERSHIP LIMITED,A0091781,16/11/2023,HEH0337669,1579.59,N,,N,N
Pendle Borough Council,"Planning, Building Control & Regulatory Services",Supplies and Services,Other Expenses,4705,THE OYSTER PARTNERSHIP LIMITED,A0091781,23/11/2023,PBC0337793,1330.14,N,,N,N
Pendle Borough Council,"Planning, Building Control & Regulatory Services",Supplies and Services,Other Expenses,4705,THE OYSTER PARTNERSHIP LIMITED,A0091781,23/11/2023,PBC0337792,1378.86,N,,N,N
Pendle Borough Council,"Planning, Building Control & Regulatory Services",Supplies and Services,Other Expenses,4705,THE OYSTER PARTNERSHIP LIMITED,A0091781,23/11/2023,PBC0337791,1386,N,,N,N
Pendle Borough Council,"Planning, Building Control & Regulatory Services",Supplies and Services,Other Expenses,4705,THE OYSTER PARTNERSHIP LIMITED,A0091781,23/11/2023,PBC0337794,1441.86,N,,N,N
Pendle Borough Council,Housing & Environmental Health,Supplies and Services,Consultants Fees,4401,G2 RECRUITMENT SOLUTIONS,A0091827,16/11/2023,HEH0337568,9209.9,N,,N,N
Pendle Borough Council,Legal & Democratic Services,Supplies and Services,Consultants Fees,4401,MR SIMON WHITFIELD,A0091841,02/11/2023,LAD0337318,200,N,,N,N
Pendle Borough Council,Property Services,Premises Related Expense,Water & Sewerage,2501,BUSINESS STREAM,A0091916,16/11/2023,EST0337643,29.75,N,,N,N
Pendle Borough Council,Property Services,Premises Related Expense,Water & Sewerage,2501,BUSINESS STREAM,A0091916,16/11/2023,EST0337645,402.88,N,,N,N
Pendle Borough Council,Property Services,Premises Related Expense,Water & Sewerage,2501,BUSINESS STREAM,A0091916,16/11/2023,EST0337644,26.57,N,,N,N
Pendle Borough Council,Finance,Capital Costs,Insurance,CE4G,AON UK LIMITED,A0091950,09/11/2023,FIN0337531,3646.72,N,,N,N
Pendle Borough Council,Finance,Capital Costs,Insurance,CE4G,AON UK LIMITED,A0091950,09/11/2023,FIN0337530,916.16,N,,N,N
Pendle Borough Council,Policy & Commissioning,Supplies and Services,Grant Funding,4737,PENDLE FOOD FOR ALL FOOD CLUB,A0091966,16/11/2023,POL0337586,7800,N,,N,N
Pendle Borough Council,Economic Growth,Supplies and Services,EFM Materials,4004,REVIEW SYSTEMS DIGITAL SIGNAGE LIMITED,A0091985,16/11/2023,ECO0337662,180,N,,N,N
Pendle Borough Council,Operational Services,,Stock : Purchases,PJ01,SMI GROUP UK,A0091999,09/11/2023,OPS0337466,46.3,N,,N,N
Pendle Borough Council,Operational Services,,Stock : Purchases,PJ01,SMI GROUP UK,A0091999,02/11/2023,OPS0337338,99.15,N,,N,N
Pendle Borough Council,Operational Services,,Stock : Purchases,pj01,SMI GROUP UK,A0091999,23/11/2023,OPS0337732,117.97,N,,N,N
Pendle Borough Council,Operational Services,,Stock : Purchases,PJ01,SMI GROUP UK,A0091999,09/11/2023,OPS0337468,198.3,N,,N,N
Pendle Borough Council,Human Resources,Indirect Employee Expenses,Emp : Medical Expenses,1236,SHARP PHYSIOTHERAPY LIMITED,A0092384,02/11/2023,PER0337300,170,N,,N,N
Pendle Borough Council,Policy & Commissioning,Supplies and Services,Children`s holiday activities,4716,THE LIGHTBEAM ACADEMY LTD,A0092431,16/11/2023,POL0337585,2268,N,,N,N
Pendle Borough Council,Housing & Environmental Health,,Housing Impts/Cap Repairs,0104,AZTEC GAS LTD,A0092485,02/11/2023,HEH0337375,1596.5,N,,N,N
Pendle Borough Council,Policy & Commissioning,Supplies and Services,Grant Funding,4737,PAVILLION COMMUNITY HUB AND CAFE,A0093251,23/11/2023,POL0337726,7800,N,,N,N
Pendle Borough Council,"Planning, Building Control & Regulatory Services",,Other Income : Non-VATable,9303,LAMB CLUB,A0093618,16/11/2023,PBC0337676,20,N,,N,N
Pendle Borough Council,Operational Services,Supplies and Services,Expenditure : Materials,0002,TURFIX PITCH SOLUTIONS,A0094206,16/11/2023,OPS0337610,2024.85,N,,N,N
Pendle Borough Council,Revenues Services,Supplies and Services,DSS Collection Fee,4414,MARSTON (HOLDINGS) LIMITED,A0094273,09/11/2023,TRE0337430,24.39,N,,N,N
Pendle Borough Council,Economic Growth,Supplies and Services,LCC Levy (Admins Costs),4419,MARSTON (HOLDINGS) LIMITED,A0094273,16/11/2023,ECO0337668,-310,N,,N,N
Pendle Borough Council,Economic Growth,Supplies and Services,LCC Levy (Admins Costs),4419,MARSTON (HOLDINGS) LIMITED,A0094273,16/11/2023,ECO0337668,310,N,,N,N
Pendle Borough Council,Housing & Environmental Health,Capital Costs,Ren Grant : 1996 Act,CH22,SOUTHFIELD CONSTRUCTION,A0094294,16/11/2023,HEH0337583,12821.4,N,,N,N
Pendle Borough Council,Housing & Environmental Health,Supplies and Services,Other Expenses,4705,MICHAEL PAGE INTERNATIONAL RECRUITMENT LTD,A0094988,02/11/2023,HEH0337314,649.95,N,,N,N
Pendle Borough Council,Housing & Environmental Health,Supplies and Services,Other Expenses,4705,MICHAEL PAGE INTERNATIONAL RECRUITMENT LTD,A0094988,02/11/2023,HEH0337315,649.95,N,,N,N
Pendle Borough Council,Housing & Environmental Health,Supplies and Services,Other Expenses,4705,MICHAEL PAGE INTERNATIONAL RECRUITMENT LTD,A0094988,02/11/2023,HEH0337316,649.95,N,,N,N
Pendle Borough Council,Housing & Environmental Health,Supplies and Services,Other Expenses,4705,MICHAEL PAGE INTERNATIONAL RECRUITMENT LTD,A0094988,16/11/2023,HEH0337587,649.95,N,,N,N
Pendle Borough Council,Housing & Environmental Health,Supplies and Services,Other Expenses,4705,MICHAEL PAGE INTERNATIONAL RECRUITMENT LTD,A0094988,23/11/2023,LAD0337716,649.95,N,,N,N
Pendle Borough Council,Economic Growth,Premises Related Expense,Grounds : R & M : Day to Day : Routine,2101,NORTHERN MARKING,A0095078,02/11/2023,ECO0337378,600,N,,N,N
Pendle Borough Council,Operational Services,Premises Related Expense,Bldgs : R & M : Day To Day,2001,MERRITT & FRYERS LTD,A0095575,09/11/2023,OPS0337455,49.16,N,,N,N
Pendle Borough Council,Operational Services,Premises Related Expense,Grounds : R & M : Day to Day : Routine,2101,MERRITT & FRYERS LTD,A0095575,09/11/2023,OPS0337454,132.38,N,,N,N
Pendle Borough Council,Operational Services,Premises Related Expense,Grounds : R & M : Day to Day : Routine,2101,M W ENVIRONMENTAL,A0095862,02/11/2023,OPS0337320,112.5,N,,N,N
Pendle Borough Council,Operational Services,Premises Related Expense,Grounds : R & M : Day to Day : Routine,2101,M W ENVIRONMENTAL,A0095862,02/11/2023,OPS0337319,162.5,N,,N,N
Pendle Borough Council,Operational Services,Premises Related Expense,Grounds : R & M : Day to Day : Routine,2101,M W ENVIRONMENTAL,A0095862,02/11/2023,OPS0337350,211.48,N,,N,N
Pendle Borough Council,Operational Services,Premises Related Expense,Grounds : R & M : Day to Day : Routine,2101,M W ENVIRONMENTAL,A0095862,09/11/2023,OPS0337489,303.94,N,,N,N
Pendle Borough Council,Policy & Commissioning,Supplies and Services,Children`s holiday activities,4716,COLNE YOUTH ACTION GROUP,A0096017,23/11/2023,POL0337712,2376,N,,N,N
Pendle Borough Council,Economic Growth,Supplies and Services,Grant Funding,4737,COLNE YOUTH ACTION GROUP,A0096017,09/11/2023,ECO0337382,37859.7,N,,N,N
Pendle Borough Council,Property Services,Premises Related Expense,Gas,2202,E.ON NEXT ENERGY LIMITED,A0096428,23/11/2023,EST0337819,30.9,N,,N,N
Pendle Borough Council,Property Services,Premises Related Expense,Gas,2202,E.ON NEXT ENERGY LIMITED,A0096428,23/11/2023,EST0337817,31.24,N,,N,N
Pendle Borough Council,Property Services,Premises Related Expense,Electricity,2203,E.ON NEXT ENERGY LIMITED,A0096428,23/11/2023,EST0337818,31,N,,N,N
Pendle Borough Council,Property Services,Premises Related Expense,Electricity,2203,E.ON NEXT ENERGY LIMITED,A0096428,23/11/2023,EST0337814,41.75,N,,N,N
Pendle Borough Council,Property Services,Premises Related Expense,Electricity,2203,E.ON NEXT ENERGY LIMITED,A0096428,23/11/2023,EST0337823,50.17,N,,N,N
Pendle Borough Council,Property Services,Premises Related Expense,Electricity,2203,E.ON NEXT ENERGY LIMITED,A0096428,09/11/2023,EST0337494,120.91,N,,N,N
Pendle Borough Council,Property Services,Premises Related Expense,Electricity,2203,E.ON NEXT ENERGY LIMITED,A0096428,09/11/2023,EST0337493,30,N,,N,N
Pendle Borough Council,Property Services,Premises Related Expense,Electricity,2203,E.ON NEXT ENERGY LIMITED,A0096428,09/11/2023,EST0337503,30,N,,N,N
Pendle Borough Council,Property Services,Premises Related Expense,Electricity,2203,E.ON NEXT ENERGY LIMITED,A0096428,09/11/2023,EST0337507,30,N,,N,N
Pendle Borough Council,Property Services,Premises Related Expense,Electricity,2203,E.ON NEXT ENERGY LIMITED,A0096428,16/11/2023,EST0337661,31,N,,N,N
Pendle Borough Council,Property Services,Premises Related Expense,Electricity,2203,E.ON NEXT ENERGY LIMITED,A0096428,23/11/2023,EST0337813,34.73,N,,N,N
Pendle Borough Council,Operational Services,Premises Related Expense,Bldgs : R & M : Day To Day,2001,JCB PRICE & SON LTD,A0096491,02/11/2023,OPS0337330,1500,N,,N,N
Pendle Borough Council,Operational Services,Premises Related Expense,Grounds : R & M : Day to Day : Routine,2101,JCB PRICE & SON LTD,A0096491,02/11/2023,OPS0337354,5300,N,,N,N
Pendle Borough Council,Legal & Democratic Services,Supplies and Services,Other Expenses,4705,BMP GOODSHAW BRASS BAND,A0096502,23/11/2023,LAD0337729,350,N,,N,N
Pendle Borough Council,Operational Services,Premises Related Expense,Grounds : R & M : Day to Day : Routine,2101,BANNISTER HALL LIMITED,A0096507,09/11/2023,OPS0337445,1071,N,,N,N
Pendle Borough Council,Property Services,Premises Related Expense,Grounds : R & M : Day to Day : Routine,2101,BEN SLATER GLAZING,A0096554,02/11/2023,EST0337370,407.67,N,,N,N
Pendle Borough Council,Operational Services,Transport Related Expense,Diesel Oil,3202,NWF FUELS,A0096773,02/11/2023,OPS0337326,2470,N,,N,N
Pendle Borough Council,Finance,Supplies and Services,Grant Funding,4737,REDACT - PERSONAL DATA,A0096806,03/11/2023,FIN0337403,500,N,,N,N
Pendle Borough Council,Finance,Supplies and Services,Grant Funding,4737,REDACT - PERSONAL DATA,A0096808,03/11/2023,FIN0337405,500,N,,N,N
Pendle Borough Council,Finance,Supplies and Services,Grant Funding,4737,REDACT - PERSONAL DATA,A0096819,03/11/2023,FIN0337406,500,N,,N,N
Pendle Borough Council,Finance,Supplies and Services,Grant Funding,4737,REDACT - PERSONAL DATA,A0096823,03/11/2023,FIN0337404,500,N,,N,N
Pendle Borough Council,Property Services,Premises Related Expense,Bldgs : R & M : Day To Day,2001,INDUSTRIAL DOOR ENGINEERING,A0096826,02/11/2023,EST0337363,855,N,,N,N
Pendle Borough Council,Property Services,Premises Related Expense,Bldgs : R & M : Day To Day,2001,INDUSTRIAL DOOR ENGINEERING,A0096826,09/11/2023,EST0337505,1635,N,,N,N
Pendle Borough Council,Finance,Supplies and Services,Other Expenses,4705,POST OFFICE LTD,A0096844,23/11/2023,FIN0337849,13004.06,N,,N,N
Pendle Borough Council,Finance,Supplies and Services,Grant Funding,4737,REDACT - PERSONAL DATA,A0096866,03/11/2023,FIN0337407,500,N,,N,N
Pendle Borough Council,Finance,Supplies and Services,Grant Funding,4737,REDACT - PERSONAL DATA,A0096872,03/11/2023,FIN0337408,500,N,,N,N
Pendle Borough Council,Finance,Supplies and Services,Grant Funding,4737,REDACT - PERSONAL DATA,A0096893,03/11/2023,FIN0337409,500,N,,N,N
Pendle Borough Council,Finance,Supplies and Services,Grant Funding,4737,REDACT - PERSONAL DATA,A0096912,03/11/2023,FIN0337410,500,N,,N,N
Pendle Borough Council,Finance,Supplies and Services,Grant Funding,4737,REDACT - PERSONAL DATA,A0096916,03/11/2023,FIN0337411,500,N,,N,N
Pendle Borough Council,Operational Services,Capital Costs,Capital : Payments,CD14,THE CDS GROUP,A0096940,16/11/2023,OPS0337593,2800,N,,N,N
Pendle Borough Council,Operational Services,Capital Costs,Capital : Payments,CD14,THE CDS GROUP,A0096940,16/11/2023,OPS0337594,200,N,,N,N
Pendle Borough Council,Operational Services,Capital Costs,Capital : Payments,CD14,THE CDS GROUP,A0096940,16/11/2023,OPS0337595,200,N,,N,N
Pendle Borough Council,Operational Services,Capital Costs,Capital : Payments,CD14,THE CDS GROUP,A0096940,16/11/2023,OPS0337596,200,N,,N,N
Pendle Borough Council,Operational Services,Capital Costs,Capital : Payments,CD14,THE CDS GROUP,A0096940,16/11/2023,OPS0337597,2142.5,N,,N,N
Pendle Borough Council,Economic Growth,Supplies and Services,Grant Funding,4737,NEWGROUND TOGETHER,A0096945,23/11/2023,ECO0337665,33948.22,N,,N,N
Pendle Borough Council,Finance,Supplies and Services,Grant Funding,4737,REDACT - PERSONAL DATA,A0096978,03/11/2023,FIN0337412,350,N,,N,N
Pendle Borough Council,Finance,Supplies and Services,Grant Funding,4737,REDACT - PERSONAL DATA,A0096980,03/11/2023,FIN0337413,350,N,,N,N
Pendle Borough Council,Operational Services,Supplies and Services,Expenditure : Materials,0002,K SUPPLIES,A0096993,23/11/2023,OPS0337763,72,N,,N,N
Pendle Borough Council,Operational Services,Transport Related Expense,Tprt : Repairs : General,3105,K SUPPLIES,A0096993,23/11/2023,OPS0337768,139.95,N,,N,N
Pendle Borough Council,Finance,Supplies and Services,Grant Funding,4737,REDACT - PERSONAL DATA,A0097003,03/11/2023,FIN0337414,350,N,,N,N
Pendle Borough Council,Operational Services,Transport Related Expense,Tprt : Annual Hire Charge,3601,CAR HIRE DAY OF SWANSEA LTD,A0097023,09/11/2023,OPS0337448,386.57,N,,N,N
Pendle Borough Council,Policy & Commissioning,Supplies and Services,Children`s holiday activities,4716,PLAY AND LEARN SCHEME CIC,A0097170,16/11/2023,POL0337603,2520,N,,N,N
Pendle Borough Council,Finance,Capital Costs,Capital: Design Fees,CD53,DCR SURVEYING AND ESTIMATING SERVICES LTD,A0097173,09/11/2023,FIN0337528,4135.05,N,,N,N
Pendle Borough Council,Finance,Capital Costs,Capital: Design Fees,CD53,DCR SURVEYING AND ESTIMATING SERVICES LTD,A0097173,09/11/2023,FIN0337529,720.87,N,,N,N
Pendle Borough Council,Finance,Capital Costs,Capital: Design Fees,CD53,ANDREW HAWTHORNE ARCHITECTS,A0097334,09/11/2023,FIN0337522,1300,N,,N,N
Pendle Borough Council,Finance,Capital Costs,Miscellaneous,CE4F,ANDREW HAWTHORNE ARCHITECTS,A0097334,09/11/2023,FIN0337522,250,N,,N,N
Pendle Borough Council,Finance,Supplies and Services,Grant Funding,4737,REDACT - PERSONAL DATA,A0097338,03/11/2023,FIN0337415,350,N,,N,N
Pendle Borough Council,Finance,Supplies and Services,Grant Funding,4737,REDACT - PERSONAL DATA,A0097339,03/11/2023,FIN0337416,350,N,,N,N
Pendle Borough Council,Operational Services,Transport Related Expense,Tprt : Repairs : General,3105,STUART TAYLOR INTERNATIONAL LTD,A0097341,09/11/2023,OPS0337479,126.81,N,,N,N
Pendle Borough Council,Operational Services,Transport Related Expense,Tprt : Repairs : General,3105,STUART TAYLOR INTERNATIONAL LTD,A0097341,23/11/2023,OPS0337765,676.92,N,,N,N
Pendle Borough Council,Housing & Environmental Health,Supplies and Services,Other Expenses,4705,GJ & MC LETTINGS,A0097353,23/11/2023,HEH0337796,2000,N,,N,N
Pendle Borough Council,Housing & Environmental Health,Supplies and Services,Other Expenses,4705,LADY  BELL LTD,A0097412,23/11/2023,HEH0337785,999,N,,N,N
Pendle Borough Council,Finance,Supplies and Services,Grant Funding,4737,REDACT - PERSONAL DATA,A0097415,03/11/2023,FIN0337417,500,N,,N,N
Pendle Borough Council,Finance,Capital Costs,Capital: Construction: Conversion/Refu,CD57,READSTONE CONSTRUCTION,A0097418,09/11/2023,FIN0337521,178266.91,N,,N,N
Pendle Borough Council,Finance,Supplies and Services,Grant Funding,4737,REDACT - PERSONAL DATA,A0097419,03/11/2023,FIN0337418,350,N,,N,N
Pendle Borough Council,Finance,Supplies and Services,Other Expenses,4705,SHP GROUP LIMITED,A0097438,15/11/2023,FIN0338008,780,N,,N,N
Pendle Borough Council,Housing & Environmental Health,Supplies and Services,Other Expenses,4705,SHP GROUP LIMITED,A0097438,02/11/2023,HEH0337299,780,N,,N,N
Pendle Borough Council,Housing & Environmental Health,Supplies and Services,Other Expenses,4705,SHP GROUP LIMITED,A0097438,23/11/2023,HEH0337789,1000,N,,N,N
Pendle Borough Council,Operational Services,Supplies and Services,EFM Materials,4004,PETER`S LANDSCAPING & GARDEN SERVICE,A0097442,09/11/2023,OPS0337472,350,N,,N,N
Pendle Borough Council,Finance,Supplies and Services,Grant Funding,4737,REDACT - PERSONAL DATA,A0097448,03/11/2023,FIN0337419,350,N,,N,N
Pendle Borough Council,Human Resources,Supplies and Services,Other Expenses,4705,AVC WISE LTD,A0097461,16/11/2023,PER0337559,132.45,N,,N,N
Pendle Borough Council,Economic Growth,Capital Costs,Consultancy,CE45,QUARTERBRIDGE,A0097469,16/11/2023,ECO0337666,2153.7,N,,N,N
Pendle Borough Council,Finance,Capital Costs,Capital: Construction: Conversion/Refu,CD57,BAILEY CONTRACTS LTD,A0097470,23/11/2023,FIN0337852,23308.12,N,,N,N
Pendle Borough Council,Finance,Supplies and Services,Meeting Expenses,4610,BELLYFLOP TV LTD,A0097473,09/11/2023,FIN0337534,990,N,,N,N
Pendle Borough Council,Legal & Democratic Services,Supplies and Services,Meeting Expenses,4610,BELLYFLOP TV LTD,A0097473,23/11/2023,LAD0337822,1485,N,,N,N
Pendle Borough Council,"Planning, Building Control & Regulatory Services",Supplies and Services,Other Expenses,4705,TRAWDEN WATER LTD,A0097487,16/11/2023,PBC0337625,3625,N,,N,N
Pendle Borough Council,Legal & Democratic Services,,Fees Income : VATable,9202,PROPERTY SEARCH PLUS LTD,A0097490,16/11/2023,LAD0337584,2.64,N,,N,N
Pendle Borough Council,Finance,,Grant Funding,4737,DEPARTMENT FOR BUSINESS AND TRADE,A0097505,24/11/2023,FIN0338018,90007,N,,N,N
Pendle Borough Council,Finance,,Grant Funding,4737,DEPARTMENT FOR BUSINESS AND TRADE,A0097505,24/11/2023,FIN0338016,890899.66,N,,N,N
Pendle Borough Council,Finance,,Grant Funding,4737,DEPARTMENT FOR BUSINESS AND TRADE,A0097505,24/11/2023,FIN0338017,3515502.66,N,,N,N
